{"text_format":"1","workbook":"xlsx","n_sheets":3,"sheets":["Total","Counts","Unique"],"not_rendered":{"charts":0,"images":0,"macros":0,"external_links":0,"defined_names":0,"comments":0,"pivot_tables":0},"unopened":[],"bounds":{"document_bytes":16777216,"sheet_cells":100000,"rows_first":2000,"rows_last":500,"rows_between":2000,"halvings":0,"cell_chars":16384,"cell_head_chars":4096},"cells_cut":0,"cells_raw":0,"read":"whole","date_system":"1900"}

{"sheet":"Total","index":0,"n_rows":65087,"n_cols":2,"rows_kept":4500,"cut":true,"hidden":false,"merged":[],"bounds":{"rows_first":2000,"rows_last":500,"rows_between":2000,"halvings":0}}
["Event Types","Count"]
["jdk.ActiveRecording",{"$f":"COUNTIF($A$2:$A$65087,A2)","v":2}]
["jdk.ActiveRecording",{"$f":"COUNTIF($A$2:$A$65087,A3)","v":2}]
["jdk.ActiveSetting",771]
["jdk.ActiveSetting",771]
["jdk.ActiveSetting",771]
["jdk.ActiveSetting",771]
["jdk.ActiveSetting",771]
["jdk.ActiveSetting",771]
["jdk.ActiveSetting",771]
["jdk.ActiveSetting",771]
["jdk.ActiveSetting",771]
["jdk.ActiveSetting",771]
["jdk.ActiveSetting",771]
["jdk.ActiveSetting",771]
["jdk.ActiveSetting",771]
["jdk.ActiveSetting",771]
["jdk.ActiveSetting",771]
["jdk.ActiveSetting",771]
["jdk.ActiveSetting",771]
["jdk.ActiveSetting",771]
["jdk.ActiveSetting",771]
["jdk.ActiveSetting",771]
["jdk.ActiveSetting",771]
["jdk.ActiveSetting",771]
["jdk.ActiveSetting",771]
["jdk.ActiveSetting",771]
["jdk.ActiveSetting",771]
["jdk.ActiveSetting",771]
["jdk.ActiveSetting",771]
["jdk.ActiveSetting",771]
["jdk.ActiveSetting",771]
["jdk.ActiveSetting",771]
["jdk.ActiveSetting",771]
["jdk.ActiveSetting",771]
["jdk.ActiveSetting",771]
["jdk.ActiveSetting",771]
["jdk.ActiveSetting",771]
["jdk.ActiveSetting",771]
["jdk.ActiveSetting",771]
["jdk.ActiveSetting",771]
["jdk.ActiveSetting",771]
["jdk.ActiveSetting",771]
["jdk.ActiveSetting",771]
["jdk.ActiveSetting",771]
["jdk.ActiveSetting",771]
["jdk.ActiveSetting",771]
["jdk.ActiveSetting",771]
["jdk.ActiveSetting",771]
["jdk.ActiveSetting",771]
["jdk.ActiveSetting",771]
["jdk.ActiveSetting",771]
["jdk.ActiveSetting",771]
["jdk.ActiveSetting",771]
["jdk.ActiveSetting",771]
["jdk.ActiveSetting",771]
["jdk.ActiveSetting",771]
["jdk.ActiveSetting",771]
["jdk.ActiveSetting",771]
["jdk.ActiveSetting",771]
["jdk.ActiveSetting",771]
["jdk.ActiveSetting",771]
["jdk.ActiveSetting",771]
["jdk.ActiveSetting",771]
["jdk.ActiveSetting",771]
["jdk.ActiveSetting",771]
["jdk.ActiveSetting",{"$f":"COUNTIF($A$2:$A$65087,A67)","v":771}]
["jdk.ActiveSetting",771]
["jdk.ActiveSetting",771]
["jdk.ActiveSetting",771]
["jdk.ActiveSetting",771]
["jdk.ActiveSetting",771]
["jdk.ActiveSetting",771]
["jdk.ActiveSetting",771]
["jdk.ActiveSetting",771]
["jdk.ActiveSetting",771]
["jdk.ActiveSetting",771]
["jdk.ActiveSetting",771]
["jdk.ActiveSetting",771]
["jdk.ActiveSetting",771]
["jdk.ActiveSetting",771]
["jdk.ActiveSetting",771]
["jdk.ActiveSetting",771]
["jdk.ActiveSetting",771]
["jdk.ActiveSetting",771]
["jdk.ActiveSetting",771]
["jdk.ActiveSetting",771]
["jdk.ActiveSetting",771]
["jdk.ActiveSetting",771]
["jdk.ActiveSetting",771]
["jdk.ActiveSetting",771]
["jdk.ActiveSetting",771]
["jdk.ActiveSetting",771]
["jdk.ActiveSetting",771]
["jdk.ActiveSetting",771]
["jdk.ActiveSetting",771]
["jdk.ActiveSetting",771]
["jdk.ActiveSetting",771]
["jdk.ActiveSetting",771]
["jdk.ActiveSetting",771]
["jdk.ActiveSetting",771]
["jdk.ActiveSetting",771]
["jdk.ActiveSetting",771]
["jdk.ActiveSetting",771]
["jdk.ActiveSetting",771]
["jdk.ActiveSetting",771]
["jdk.ActiveSetting",771]
["jdk.ActiveSetting",771]
["jdk.ActiveSetting",771]
["jdk.ActiveSetting",771]
["jdk.ActiveSetting",771]
["jdk.ActiveSetting",771]
["jdk.ActiveSetting",771]
["jdk.ActiveSetting",771]
["jdk.ActiveSetting",771]
["jdk.ActiveSetting",771]
["jdk.ActiveSetting",771]
["jdk.ActiveSetting",771]
["jdk.ActiveSetting",771]
["jdk.ActiveSetting",771]
["jdk.ActiveSetting",771]
["jdk.ActiveSetting",771]
["jdk.ActiveSetting",771]
["jdk.ActiveSetting",771]
["jdk.ActiveSetting",771]
["jdk.ActiveSetting",771]
["jdk.ActiveSetting",771]
["jdk.ActiveSetting",771]
["jdk.ActiveSetting",771]
["jdk.ActiveSetting",771]
["jdk.ActiveSetting",{"$f":"COUNTIF($A$2:$A$65087,A131)","v":771}]
["jdk.ActiveSetting",771]
["jdk.ActiveSetting",771]
["jdk.ActiveSetting",771]
["jdk.ActiveSetting",771]
["jdk.ActiveSetting",771]
["jdk.ActiveSetting",771]
["jdk.ActiveSetting",771]
["jdk.ActiveSetting",771]
["jdk.ActiveSetting",771]
["jdk.ActiveSetting",771]
["jdk.ActiveSetting",771]
["jdk.ActiveSetting",771]
["jdk.ActiveSetting",771]
["jdk.ActiveSetting",771]
["jdk.ActiveSetting",771]
["jdk.ActiveSetting",771]
["jdk.ActiveSetting",771]
["jdk.ActiveSetting",771]
["jdk.ActiveSetting",771]
["jdk.ActiveSetting",771]
["jdk.ActiveSetting",771]
["jdk.ActiveSetting",771]
["jdk.ActiveSetting",771]
["jdk.ActiveSetting",771]
["jdk.ActiveSetting",771]
["jdk.ActiveSetting",771]
["jdk.ActiveSetting",771]
["jdk.ActiveSetting",771]
["jdk.ActiveSetting",771]
["jdk.ActiveSetting",771]
["jdk.ActiveSetting",771]
["jdk.ActiveSetting",771]
["jdk.ActiveSetting",771]
["jdk.ActiveSetting",771]
["jdk.ActiveSetting",771]
["jdk.ActiveSetting",771]
["jdk.ActiveSetting",771]
["jdk.ActiveSetting",771]
["jdk.ActiveSetting",771]
["jdk.ActiveSetting",771]
["jdk.ActiveSetting",771]
["jdk.ActiveSetting",771]
["jdk.ActiveSetting",771]
["jdk.ActiveSetting",771]
["jdk.ActiveSetting",771]
["jdk.ActiveSetting",771]
["jdk.ActiveSetting",771]
["jdk.ActiveSetting",771]
["jdk.ActiveSetting",771]
["jdk.ActiveSetting",771]
["jdk.ActiveSetting",771]
["jdk.ActiveSetting",771]
["jdk.ActiveSetting",771]
["jdk.ActiveSetting",771]
["jdk.ActiveSetting",771]
["jdk.ActiveSetting",771]
["jdk.ActiveSetting",771]
["jdk.ActiveSetting",771]
["jdk.ActiveSetting",771]
["jdk.ActiveSetting",771]
["jdk.ActiveSetting",771]
["jdk.ActiveSetting",771]
["jdk.ActiveSetting",771]
["jdk.ActiveSetting",{"$f":"COUNTIF($A$2:$A$65087,A195)","v":771}]
["jdk.ActiveSetting",771]
["jdk.ActiveSetting",771]
["jdk.ActiveSetting",771]
["jdk.ActiveSetting",771]
["jdk.ActiveSetting",771]
["jdk.ActiveSetting",771]
["jdk.ActiveSetting",771]
["jdk.ActiveSetting",771]
["jdk.ActiveSetting",771]
["jdk.ActiveSetting",771]
["jdk.ActiveSetting",771]
["jdk.ActiveSetting",771]
["jdk.ActiveSetting",771]
["jdk.ActiveSetting",771]
["jdk.ActiveSetting",771]
["jdk.ActiveSetting",771]
["jdk.ActiveSetting",771]
["jdk.ActiveSetting",771]
["jdk.ActiveSetting",771]
["jdk.ActiveSetting",771]
["jdk.ActiveSetting",771]
["jdk.ActiveSetting",771]
["jdk.ActiveSetting",771]
["jdk.ActiveSetting",771]
["jdk.ActiveSetting",771]
["jdk.ActiveSetting",771]
["jdk.ActiveSetting",771]
["jdk.ActiveSetting",771]
["jdk.ActiveSetting",771]
["jdk.ActiveSetting",771]
["jdk.ActiveSetting",771]
["jdk.ActiveSetting",771]
["jdk.ActiveSetting",771]
["jdk.ActiveSetting",771]
["jdk.ActiveSetting",771]
["jdk.ActiveSetting",771]
["jdk.ActiveSetting",771]
["jdk.ActiveSetting",771]
["jdk.ActiveSetting",771]
["jdk.ActiveSetting",771]
["jdk.ActiveSetting",771]
["jdk.ActiveSetting",771]
["jdk.ActiveSetting",771]
["jdk.ActiveSetting",771]
["jdk.ActiveSetting",771]
["jdk.ActiveSetting",771]
["jdk.ActiveSetting",771]
["jdk.ActiveSetting",771]
["jdk.ActiveSetting",771]
["jdk.ActiveSetting",771]
["jdk.ActiveSetting",771]
["jdk.ActiveSetting",771]
["jdk.ActiveSetting",771]
["jdk.ActiveSetting",771]
["jdk.ActiveSetting",771]
["jdk.ActiveSetting",771]
["jdk.ActiveSetting",771]
["jdk.ActiveSetting",771]
["jdk.ActiveSetting",771]
["jdk.ActiveSetting",771]
["jdk.ActiveSetting",771]
["jdk.ActiveSetting",771]
["jdk.ActiveSetting",771]
["jdk.ActiveSetting",{"$f":"COUNTIF($A$2:$A$65087,A259)","v":771}]
["jdk.ActiveSetting",771]
["jdk.ActiveSetting",771]
["jdk.ActiveSetting",771]
["jdk.ActiveSetting",771]
["jdk.ActiveSetting",771]
["jdk.ActiveSetting",771]
["jdk.ActiveSetting",771]
["jdk.ActiveSetting",771]
["jdk.ActiveSetting",771]
["jdk.ActiveSetting",771]
["jdk.ActiveSetting",771]
["jdk.ActiveSetting",771]
["jdk.ActiveSetting",771]
["jdk.ActiveSetting",771]
["jdk.ActiveSetting",771]
["jdk.ActiveSetting",771]
["jdk.ActiveSetting",771]
["jdk.ActiveSetting",771]
["jdk.ActiveSetting",771]
["jdk.ActiveSetting",771]
["jdk.ActiveSetting",771]
["jdk.ActiveSetting",771]
["jdk.ActiveSetting",771]
["jdk.ActiveSetting",771]
["jdk.ActiveSetting",771]
["jdk.ActiveSetting",771]
["jdk.ActiveSetting",771]
["jdk.ActiveSetting",771]
["jdk.ActiveSetting",771]
["jdk.ActiveSetting",771]
["jdk.ActiveSetting",771]
["jdk.ActiveSetting",771]
["jdk.ActiveSetting",771]
["jdk.ActiveSetting",771]
["jdk.ActiveSetting",771]
["jdk.ActiveSetting",771]
["jdk.ActiveSetting",771]
["jdk.ActiveSetting",771]
["jdk.ActiveSetting",771]
["jdk.ActiveSetting",771]
["jdk.ActiveSetting",771]
["jdk.ActiveSetting",771]
["jdk.ActiveSetting",771]
["jdk.ActiveSetting",771]
["jdk.ActiveSetting",771]
["jdk.ActiveSetting",771]
["jdk.ActiveSetting",771]
["jdk.ActiveSetting",771]
["jdk.ActiveSetting",771]
["jdk.ActiveSetting",771]
["jdk.ActiveSetting",771]
["jdk.ActiveSetting",771]
["jdk.ActiveSetting",771]
["jdk.ActiveSetting",771]
["jdk.ActiveSetting",771]
["jdk.ActiveSetting",771]
["jdk.ActiveSetting",771]
["jdk.ActiveSetting",771]
["jdk.ActiveSetting",771]
["jdk.ActiveSetting",771]
["jdk.ActiveSetting",771]
["jdk.ActiveSetting",771]
["jdk.ActiveSetting",771]
["jdk.ActiveSetting",{"$f":"COUNTIF($A$2:$A$65087,A323)","v":771}]
["jdk.ActiveSetting",771]
["jdk.ActiveSetting",771]
["jdk.ActiveSetting",771]
["jdk.ActiveSetting",771]
["jdk.ActiveSetting",771]
["jdk.ActiveSetting",771]
["jdk.ActiveSetting",771]
["jdk.ActiveSetting",771]
["jdk.ActiveSetting",771]
["jdk.ActiveSetting",771]
["jdk.ActiveSetting",771]
["jdk.ActiveSetting",771]
["jdk.ActiveSetting",771]
["jdk.ActiveSetting",771]
["jdk.ActiveSetting",771]
["jdk.ActiveSetting",771]
["jdk.ActiveSetting",771]
["jdk.ActiveSetting",771]
["jdk.ActiveSetting",771]
["jdk.ActiveSetting",771]
["jdk.ActiveSetting",771]
["jdk.ActiveSetting",771]
["jdk.ActiveSetting",771]
["jdk.ActiveSetting",771]
["jdk.ActiveSetting",771]
["jdk.ActiveSetting",771]
["jdk.ActiveSetting",771]
["jdk.ActiveSetting",771]
["jdk.ActiveSetting",771]
["jdk.ActiveSetting",771]
["jdk.ActiveSetting",771]
["jdk.ActiveSetting",771]
["jdk.ActiveSetting",771]
["jdk.ActiveSetting",771]
["jdk.ActiveSetting",771]
["jdk.ActiveSetting",771]
["jdk.ActiveSetting",771]
["jdk.ActiveSetting",771]
["jdk.ActiveSetting",771]
["jdk.ActiveSetting",771]
["jdk.ActiveSetting",771]
["jdk.ActiveSetting",771]
["jdk.ActiveSetting",771]
["jdk.ActiveSetting",771]
["jdk.ActiveSetting",771]
["jdk.ActiveSetting",771]
["jdk.ActiveSetting",771]
["jdk.ActiveSetting",771]
["jdk.ActiveSetting",771]
["jdk.ActiveSetting",771]
["jdk.ActiveSetting",771]
["jdk.ActiveSetting",771]
["jdk.ActiveSetting",771]
["jdk.ActiveSetting",771]
["jdk.ActiveSetting",771]
["jdk.ActiveSetting",771]
["jdk.ActiveSetting",771]
["jdk.ActiveSetting",771]
["jdk.ActiveSetting",771]
["jdk.ActiveSetting",771]
["jdk.ActiveSetting",771]
["jdk.ActiveSetting",771]
["jdk.ActiveSetting",771]
["jdk.ActiveSetting",{"$f":"COUNTIF($A$2:$A$65087,A387)","v":771}]
["jdk.ActiveSetting",771]
["jdk.ActiveSetting",771]
["jdk.ActiveSetting",771]
["jdk.ActiveSetting",771]
["jdk.ActiveSetting",771]
["jdk.ActiveSetting",771]
["jdk.ActiveSetting",771]
["jdk.ActiveSetting",771]
["jdk.ActiveSetting",771]
["jdk.ActiveSetting",771]
["jdk.ActiveSetting",771]
["jdk.ActiveSetting",771]
["jdk.ActiveSetting",771]
["jdk.ActiveSetting",771]
["jdk.ActiveSetting",771]
["jdk.ActiveSetting",771]
["jdk.ActiveSetting",771]
["jdk.ActiveSetting",771]
["jdk.ActiveSetting",771]
["jdk.ActiveSetting",771]
["jdk.ActiveSetting",771]
["jdk.ActiveSetting",771]
["jdk.ActiveSetting",771]
["jdk.ActiveSetting",771]
["jdk.ActiveSetting",771]
["jdk.ActiveSetting",771]
["jdk.ActiveSetting",771]
["jdk.ActiveSetting",771]
["jdk.ActiveSetting",771]
["jdk.ActiveSetting",771]
["jdk.ActiveSetting",771]
["jdk.ActiveSetting",771]
["jdk.ActiveSetting",771]
["jdk.ActiveSetting",771]
["jdk.ActiveSetting",771]
["jdk.ActiveSetting",771]
["jdk.ActiveSetting",771]
["jdk.ActiveSetting",771]
["jdk.ActiveSetting",771]
["jdk.ActiveSetting",771]
["jdk.ActiveSetting",771]
["jdk.ActiveSetting",771]
["jdk.ActiveSetting",771]
["jdk.ActiveSetting",771]
["jdk.ActiveSetting",771]
["jdk.ActiveSetting",771]
["jdk.ActiveSetting",771]
["jdk.ActiveSetting",771]
["jdk.ActiveSetting",771]
["jdk.ActiveSetting",771]
["jdk.ActiveSetting",771]
["jdk.ActiveSetting",771]
["jdk.ActiveSetting",771]
["jdk.ActiveSetting",771]
["jdk.ActiveSetting",771]
["jdk.ActiveSetting",771]
["jdk.ActiveSetting",771]
["jdk.ActiveSetting",771]
["jdk.ActiveSetting",771]
["jdk.ActiveSetting",771]
["jdk.ActiveSetting",771]
["jdk.ActiveSetting",771]
["jdk.ActiveSetting",771]
["jdk.ActiveSetting",{"$f":"COUNTIF($A$2:$A$65087,A451)","v":771}]
["jdk.ActiveSetting",771]
["jdk.ActiveSetting",771]
["jdk.ActiveSetting",771]
["jdk.ActiveSetting",771]
["jdk.ActiveSetting",771]
["jdk.ActiveSetting",771]
["jdk.ActiveSetting",771]
["jdk.ActiveSetting",771]
["jdk.ActiveSetting",771]
["jdk.ActiveSetting",771]
["jdk.ActiveSetting",771]
["jdk.ActiveSetting",771]
["jdk.ActiveSetting",771]
["jdk.ActiveSetting",771]
["jdk.ActiveSetting",771]
["jdk.ActiveSetting",771]
["jdk.ActiveSetting",771]
["jdk.ActiveSetting",771]
["jdk.ActiveSetting",771]
["jdk.ActiveSetting",771]
["jdk.ActiveSetting",771]
["jdk.ActiveSetting",771]
["jdk.ActiveSetting",771]
["jdk.ActiveSetting",771]
["jdk.ActiveSetting",771]
["jdk.ActiveSetting",771]
["jdk.ActiveSetting",771]
["jdk.ActiveSetting",771]
["jdk.ActiveSetting",771]
["jdk.ActiveSetting",771]
["jdk.ActiveSetting",771]
["jdk.ActiveSetting",771]
["jdk.ActiveSetting",771]
["jdk.ActiveSetting",771]
["jdk.ActiveSetting",771]
["jdk.ActiveSetting",771]
["jdk.ActiveSetting",771]
["jdk.ActiveSetting",771]
["jdk.ActiveSetting",771]
["jdk.ActiveSetting",771]
["jdk.ActiveSetting",771]
["jdk.ActiveSetting",771]
["jdk.ActiveSetting",771]
["jdk.ActiveSetting",771]
["jdk.ActiveSetting",771]
["jdk.ActiveSetting",771]
["jdk.ActiveSetting",771]
["jdk.ActiveSetting",771]
["jdk.ActiveSetting",771]
["jdk.ActiveSetting",771]
["jdk.ActiveSetting",771]
["jdk.ActiveSetting",771]
["jdk.ActiveSetting",771]
["jdk.ActiveSetting",771]
["jdk.ActiveSetting",771]
["jdk.ActiveSetting",771]
["jdk.ActiveSetting",771]
["jdk.ActiveSetting",771]
["jdk.ActiveSetting",771]
["jdk.ActiveSetting",771]
["jdk.ActiveSetting",771]
["jdk.ActiveSetting",771]
["jdk.ActiveSetting",771]
["jdk.ActiveSetting",{"$f":"COUNTIF($A$2:$A$65087,A515)","v":771}]
["jdk.ActiveSetting",771]
["jdk.ActiveSetting",771]
["jdk.ActiveSetting",771]
["jdk.ActiveSetting",771]
["jdk.ActiveSetting",771]
["jdk.ActiveSetting",771]
["jdk.ActiveSetting",771]
["jdk.ActiveSetting",771]
["jdk.ActiveSetting",771]
["jdk.ActiveSetting",771]
["jdk.ActiveSetting",771]
["jdk.ActiveSetting",771]
["jdk.ActiveSetting",771]
["jdk.ActiveSetting",771]
["jdk.ActiveSetting",771]
["jdk.ActiveSetting",771]
["jdk.ActiveSetting",771]
["jdk.ActiveSetting",771]
["jdk.ActiveSetting",771]
["jdk.ActiveSetting",771]
["jdk.ActiveSetting",771]
["jdk.ActiveSetting",771]
["jdk.ActiveSetting",771]
["jdk.ActiveSetting",771]
["jdk.ActiveSetting",771]
["jdk.ActiveSetting",771]
["jdk.ActiveSetting",771]
["jdk.ActiveSetting",771]
["jdk.ActiveSetting",771]
["jdk.ActiveSetting",771]
["jdk.ActiveSetting",771]
["jdk.ActiveSetting",771]
["jdk.ActiveSetting",771]
["jdk.ActiveSetting",771]
["jdk.ActiveSetting",771]
["jdk.ActiveSetting",771]
["jdk.ActiveSetting",771]
["jdk.ActiveSetting",771]
["jdk.ActiveSetting",771]
["jdk.ActiveSetting",771]
["jdk.ActiveSetting",771]
["jdk.ActiveSetting",771]
["jdk.ActiveSetting",771]
["jdk.ActiveSetting",771]
["jdk.ActiveSetting",771]
["jdk.ActiveSetting",771]
["jdk.ActiveSetting",771]
["jdk.ActiveSetting",771]
["jdk.ActiveSetting",771]
["jdk.ActiveSetting",771]
["jdk.ActiveSetting",771]
["jdk.ActiveSetting",771]
["jdk.ActiveSetting",771]
["jdk.ActiveSetting",771]
["jdk.ActiveSetting",771]
["jdk.ActiveSetting",771]
["jdk.ActiveSetting",771]
["jdk.ActiveSetting",771]
["jdk.ActiveSetting",771]
["jdk.ActiveSetting",771]
["jdk.ActiveSetting",771]
["jdk.ActiveSetting",771]
["jdk.ActiveSetting",771]
["jdk.ActiveSetting",{"$f":"COUNTIF($A$2:$A$65087,A579)","v":771}]
["jdk.ActiveSetting",771]
["jdk.ActiveSetting",771]
["jdk.ActiveSetting",771]
["jdk.ActiveSetting",771]
["jdk.ActiveSetting",771]
["jdk.ActiveSetting",771]
["jdk.ActiveSetting",771]
["jdk.ActiveSetting",771]
["jdk.ActiveSetting",771]
["jdk.ActiveSetting",771]
["jdk.ActiveSetting",771]
["jdk.ActiveSetting",771]
["jdk.ActiveSetting",771]
["jdk.ActiveSetting",771]
["jdk.ActiveSetting",771]
["jdk.ActiveSetting",771]
["jdk.ActiveSetting",771]
["jdk.ActiveSetting",771]
["jdk.ActiveSetting",771]
["jdk.ActiveSetting",771]
["jdk.ActiveSetting",771]
["jdk.ActiveSetting",771]
["jdk.ActiveSetting",771]
["jdk.ActiveSetting",771]
["jdk.ActiveSetting",771]
["jdk.ActiveSetting",771]
["jdk.ActiveSetting",771]
["jdk.ActiveSetting",771]
["jdk.ActiveSetting",771]
["jdk.ActiveSetting",771]
["jdk.ActiveSetting",771]
["jdk.ActiveSetting",771]
["jdk.ActiveSetting",771]
["jdk.ActiveSetting",771]
["jdk.ActiveSetting",771]
["jdk.ActiveSetting",771]
["jdk.ActiveSetting",771]
["jdk.ActiveSetting",771]
["jdk.ActiveSetting",771]
["jdk.ActiveSetting",771]
["jdk.ActiveSetting",771]
["jdk.ActiveSetting",771]
["jdk.ActiveSetting",771]
["jdk.ActiveSetting",771]
["jdk.ActiveSetting",771]
["jdk.ActiveSetting",771]
["jdk.ActiveSetting",771]
["jdk.ActiveSetting",771]
["jdk.ActiveSetting",771]
["jdk.ActiveSetting",771]
["jdk.ActiveSetting",771]
["jdk.ActiveSetting",771]
["jdk.ActiveSetting",771]
["jdk.ActiveSetting",771]
["jdk.ActiveSetting",771]
["jdk.ActiveSetting",771]
["jdk.ActiveSetting",771]
["jdk.ActiveSetting",771]
["jdk.ActiveSetting",771]
["jdk.ActiveSetting",771]
["jdk.ActiveSetting",771]
["jdk.ActiveSetting",771]
["jdk.ActiveSetting",771]
["jdk.ActiveSetting",{"$f":"COUNTIF($A$2:$A$65087,A643)","v":771}]
["jdk.ActiveSetting",771]
["jdk.ActiveSetting",771]
["jdk.ActiveSetting",771]
["jdk.ActiveSetting",771]
["jdk.ActiveSetting",771]
["jdk.ActiveSetting",771]
["jdk.ActiveSetting",771]
["jdk.ActiveSetting",771]
["jdk.ActiveSetting",771]
["jdk.ActiveSetting",771]
["jdk.ActiveSetting",771]
["jdk.ActiveSetting",771]
["jdk.ActiveSetting",771]
["jdk.ActiveSetting",771]
["jdk.ActiveSetting",771]
["jdk.ActiveSetting",771]
["jdk.ActiveSetting",771]
["jdk.ActiveSetting",771]
["jdk.ActiveSetting",771]
["jdk.ActiveSetting",771]
["jdk.ActiveSetting",771]
["jdk.ActiveSetting",771]
["jdk.ActiveSetting",771]
["jdk.ActiveSetting",771]
["jdk.ActiveSetting",771]
["jdk.ActiveSetting",771]
["jdk.ActiveSetting",771]
["jdk.ActiveSetting",771]
["jdk.ActiveSetting",771]
["jdk.ActiveSetting",771]
["jdk.ActiveSetting",771]
["jdk.ActiveSetting",771]
["jdk.ActiveSetting",771]
["jdk.ActiveSetting",771]
["jdk.ActiveSetting",771]
["jdk.ActiveSetting",771]
["jdk.ActiveSetting",771]
["jdk.ActiveSetting",771]
["jdk.ActiveSetting",771]
["jdk.ActiveSetting",771]
["jdk.ActiveSetting",771]
["jdk.ActiveSetting",771]
["jdk.ActiveSetting",771]
["jdk.ActiveSetting",771]
["jdk.ActiveSetting",771]
["jdk.ActiveSetting",771]
["jdk.ActiveSetting",771]
["jdk.ActiveSetting",771]
["jdk.ActiveSetting",771]
["jdk.ActiveSetting",771]
["jdk.ActiveSetting",771]
["jdk.ActiveSetting",771]
["jdk.ActiveSetting",771]
["jdk.ActiveSetting",771]
["jdk.ActiveSetting",771]
["jdk.ActiveSetting",771]
["jdk.ActiveSetting",771]
["jdk.ActiveSetting",771]
["jdk.ActiveSetting",771]
["jdk.ActiveSetting",771]
["jdk.ActiveSetting",771]
["jdk.ActiveSetting",771]
["jdk.ActiveSetting",771]
["jdk.ActiveSetting",{"$f":"COUNTIF($A$2:$A$65087,A707)","v":771}]
["jdk.ActiveSetting",771]
["jdk.ActiveSetting",771]
["jdk.ActiveSetting",771]
["jdk.ActiveSetting",771]
["jdk.ActiveSetting",771]
["jdk.ActiveSetting",771]
["jdk.ActiveSetting",771]
["jdk.ActiveSetting",771]
["jdk.ActiveSetting",771]
["jdk.ActiveSetting",771]
["jdk.ActiveSetting",771]
["jdk.ActiveSetting",771]
["jdk.ActiveSetting",771]
["jdk.ActiveSetting",771]
["jdk.ActiveSetting",771]
["jdk.ActiveSetting",771]
["jdk.ActiveSetting",771]
["jdk.ActiveSetting",771]
["jdk.ActiveSetting",771]
["jdk.ActiveSetting",771]
["jdk.ActiveSetting",771]
["jdk.ActiveSetting",771]
["jdk.ActiveSetting",771]
["jdk.ActiveSetting",771]
["jdk.ActiveSetting",771]
["jdk.ActiveSetting",771]
["jdk.ActiveSetting",771]
["jdk.ActiveSetting",771]
["jdk.ActiveSetting",771]
["jdk.ActiveSetting",771]
["jdk.ActiveSetting",771]
["jdk.ActiveSetting",771]
["jdk.ActiveSetting",771]
["jdk.ActiveSetting",771]
["jdk.ActiveSetting",771]
["jdk.ActiveSetting",771]
["jdk.ActiveSetting",771]
["jdk.ActiveSetting",771]
["jdk.ActiveSetting",771]
["jdk.ActiveSetting",771]
["jdk.ActiveSetting",771]
["jdk.ActiveSetting",771]
["jdk.ActiveSetting",771]
["jdk.ActiveSetting",771]
["jdk.ActiveSetting",771]
["jdk.ActiveSetting",771]
["jdk.ActiveSetting",771]
["jdk.ActiveSetting",771]
["jdk.ActiveSetting",771]
["jdk.ActiveSetting",771]
["jdk.ActiveSetting",771]
["jdk.ActiveSetting",771]
["jdk.ActiveSetting",771]
["jdk.ActiveSetting",771]
["jdk.ActiveSetting",771]
["jdk.ActiveSetting",771]
["jdk.ActiveSetting",771]
["jdk.ActiveSetting",771]
["jdk.ActiveSetting",771]
["jdk.ActiveSetting",771]
["jdk.ActiveSetting",771]
["jdk.ActiveSetting",771]
["jdk.ActiveSetting",771]
["jdk.ActiveSetting",{"$f":"COUNTIF($A$2:$A$65087,A771)","v":771}]
["jdk.ActiveSetting",771]
["jdk.ActiveSetting",771]
["jdk.ActiveSetting",771]
["jdk.AllocationRequiringGC",6]
["jdk.AllocationRequiringGC",6]
["jdk.AllocationRequiringGC",6]
["jdk.AllocationRequiringGC",6]
["jdk.AllocationRequiringGC",6]
["jdk.AllocationRequiringGC",6]
["jdk.BiasedLockRevocation",5]
["jdk.BiasedLockRevocation",5]
["jdk.BiasedLockRevocation",5]
["jdk.BiasedLockRevocation",5]
["jdk.BiasedLockRevocation",5]
["jdk.BiasedLockSelfRevocation",3]
["jdk.BiasedLockSelfRevocation",3]
["jdk.BiasedLockSelfRevocation",3]
["jdk.BooleanFlag",761]
["jdk.BooleanFlag",761]
["jdk.BooleanFlag",761]
["jdk.BooleanFlag",761]
["jdk.BooleanFlag",761]
["jdk.BooleanFlag",761]
["jdk.BooleanFlag",761]
["jdk.BooleanFlag",761]
["jdk.BooleanFlag",761]
["jdk.BooleanFlag",761]
["jdk.BooleanFlag",761]
["jdk.BooleanFlag",761]
["jdk.BooleanFlag",761]
["jdk.BooleanFlag",761]
["jdk.BooleanFlag",761]
["jdk.BooleanFlag",761]
["jdk.BooleanFlag",761]
["jdk.BooleanFlag",761]
["jdk.BooleanFlag",761]
["jdk.BooleanFlag",761]
["jdk.BooleanFlag",761]
["jdk.BooleanFlag",761]
["jdk.BooleanFlag",761]
["jdk.BooleanFlag",761]
["jdk.BooleanFlag",761]
["jdk.BooleanFlag",761]
["jdk.BooleanFlag",761]
["jdk.BooleanFlag",761]
["jdk.BooleanFlag",761]
["jdk.BooleanFlag",761]
["jdk.BooleanFlag",761]
["jdk.BooleanFlag",761]
["jdk.BooleanFlag",761]
["jdk.BooleanFlag",761]
["jdk.BooleanFlag",761]
["jdk.BooleanFlag",761]
["jdk.BooleanFlag",761]
["jdk.BooleanFlag",761]
["jdk.BooleanFlag",761]
["jdk.BooleanFlag",761]
["jdk.BooleanFlag",761]
["jdk.BooleanFlag",761]
["jdk.BooleanFlag",761]
["jdk.BooleanFlag",761]
["jdk.BooleanFlag",761]
["jdk.BooleanFlag",761]
["jdk.BooleanFlag",{"$f":"COUNTIF($A$2:$A$65087,A835)","v":761}]
["jdk.BooleanFlag",761]
["jdk.BooleanFlag",761]
["jdk.BooleanFlag",761]
["jdk.BooleanFlag",761]
["jdk.BooleanFlag",761]
["jdk.BooleanFlag",761]
["jdk.BooleanFlag",761]
["jdk.BooleanFlag",761]
["jdk.BooleanFlag",761]
["jdk.BooleanFlag",761]
["jdk.BooleanFlag",761]
["jdk.BooleanFlag",761]
["jdk.BooleanFlag",761]
["jdk.BooleanFlag",761]
["jdk.BooleanFlag",761]
["jdk.BooleanFlag",761]
["jdk.BooleanFlag",761]
["jdk.BooleanFlag",761]
["jdk.BooleanFlag",761]
["jdk.BooleanFlag",761]
["jdk.BooleanFlag",761]
["jdk.BooleanFlag",761]
["jdk.BooleanFlag",761]
["jdk.BooleanFlag",761]
["jdk.BooleanFlag",761]
["jdk.BooleanFlag",761]
["jdk.BooleanFlag",761]
["jdk.BooleanFlag",761]
["jdk.BooleanFlag",761]
["jdk.BooleanFlag",761]
["jdk.BooleanFlag",761]
["jdk.BooleanFlag",761]
["jdk.BooleanFlag",761]
["jdk.BooleanFlag",761]
["jdk.BooleanFlag",761]
["jdk.BooleanFlag",761]
["jdk.BooleanFlag",761]
["jdk.BooleanFlag",761]
["jdk.BooleanFlag",761]
["jdk.BooleanFlag",761]
["jdk.BooleanFlag",761]
["jdk.BooleanFlag",761]
["jdk.BooleanFlag",761]
["jdk.BooleanFlag",761]
["jdk.BooleanFlag",761]
["jdk.BooleanFlag",761]
["jdk.BooleanFlag",761]
["jdk.BooleanFlag",761]
["jdk.BooleanFlag",761]
["jdk.BooleanFlag",761]
["jdk.BooleanFlag",761]
["jdk.BooleanFlag",761]
["jdk.BooleanFlag",761]
["jdk.BooleanFlag",761]
["jdk.BooleanFlag",761]
["jdk.BooleanFlag",761]
["jdk.BooleanFlag",761]
["jdk.BooleanFlag",761]
["jdk.BooleanFlag",761]
["jdk.BooleanFlag",761]
["jdk.BooleanFlag",761]
["jdk.BooleanFlag",761]
["jdk.BooleanFlag",761]
["jdk.BooleanFlag",{"$f":"COUNTIF($A$2:$A$65087,A899)","v":761}]
["jdk.BooleanFlag",761]
["jdk.BooleanFlag",761]
["jdk.BooleanFlag",761]
["jdk.BooleanFlag",761]
["jdk.BooleanFlag",761]
["jdk.BooleanFlag",761]
["jdk.BooleanFlag",761]
["jdk.BooleanFlag",761]
["jdk.BooleanFlag",761]
["jdk.BooleanFlag",761]
["jdk.BooleanFlag",761]
["jdk.BooleanFlag",761]
["jdk.BooleanFlag",761]
["jdk.BooleanFlag",761]
["jdk.BooleanFlag",761]
["jdk.BooleanFlag",761]
["jdk.BooleanFlag",761]
["jdk.BooleanFlag",761]
["jdk.BooleanFlag",761]
["jdk.BooleanFlag",761]
["jdk.BooleanFlag",761]
["jdk.BooleanFlag",761]
["jdk.BooleanFlag",761]
["jdk.BooleanFlag",761]
["jdk.BooleanFlag",761]
["jdk.BooleanFlag",761]
["jdk.BooleanFlag",761]
["jdk.BooleanFlag",761]
["jdk.BooleanFlag",761]
["jdk.BooleanFlag",761]
["jdk.BooleanFlag",761]
["jdk.BooleanFlag",761]
["jdk.BooleanFlag",761]
["jdk.BooleanFlag",761]
["jdk.BooleanFlag",761]
["jdk.BooleanFlag",761]
["jdk.BooleanFlag",761]
["jdk.BooleanFlag",761]
["jdk.BooleanFlag",761]
["jdk.BooleanFlag",761]
["jdk.BooleanFlag",761]
["jdk.BooleanFlag",761]
["jdk.BooleanFlag",761]
["jdk.BooleanFlag",761]
["jdk.BooleanFlag",761]
["jdk.BooleanFlag",761]
["jdk.BooleanFlag",761]
["jdk.BooleanFlag",761]
["jdk.BooleanFlag",761]
["jdk.BooleanFlag",761]
["jdk.BooleanFlag",761]
["jdk.BooleanFlag",761]
["jdk.BooleanFlag",761]
["jdk.BooleanFlag",761]
["jdk.BooleanFlag",761]
["jdk.BooleanFlag",761]
["jdk.BooleanFlag",761]
["jdk.BooleanFlag",761]
["jdk.BooleanFlag",761]
["jdk.BooleanFlag",761]
["jdk.BooleanFlag",761]
["jdk.BooleanFlag",761]
["jdk.BooleanFlag",761]
["jdk.BooleanFlag",{"$f":"COUNTIF($A$2:$A$65087,A963)","v":761}]
["jdk.BooleanFlag",761]
["jdk.BooleanFlag",761]
["jdk.BooleanFlag",761]
["jdk.BooleanFlag",761]
["jdk.BooleanFlag",761]
["jdk.BooleanFlag",761]
["jdk.BooleanFlag",761]
["jdk.BooleanFlag",761]
["jdk.BooleanFlag",761]
["jdk.BooleanFlag",761]
["jdk.BooleanFlag",761]
["jdk.BooleanFlag",761]
["jdk.BooleanFlag",761]
["jdk.BooleanFlag",761]
["jdk.BooleanFlag",761]
["jdk.BooleanFlag",761]
["jdk.BooleanFlag",761]
["jdk.BooleanFlag",761]
["jdk.BooleanFlag",761]
["jdk.BooleanFlag",761]
["jdk.BooleanFlag",761]
["jdk.BooleanFlag",761]
["jdk.BooleanFlag",761]
["jdk.BooleanFlag",761]
["jdk.BooleanFlag",761]
["jdk.BooleanFlag",761]
["jdk.BooleanFlag",761]
["jdk.BooleanFlag",761]
["jdk.BooleanFlag",761]
["jdk.BooleanFlag",761]
["jdk.BooleanFlag",761]
["jdk.BooleanFlag",761]
["jdk.BooleanFlag",761]
["jdk.BooleanFlag",761]
["jdk.BooleanFlag",761]
["jdk.BooleanFlag",761]
["jdk.BooleanFlag",761]
["jdk.BooleanFlag",761]
["jdk.BooleanFlag",761]
["jdk.BooleanFlag",761]
["jdk.BooleanFlag",761]
["jdk.BooleanFlag",761]
["jdk.BooleanFlag",761]
["jdk.BooleanFlag",761]
["jdk.BooleanFlag",761]
["jdk.BooleanFlag",761]
["jdk.BooleanFlag",761]
["jdk.BooleanFlag",761]
["jdk.BooleanFlag",761]
["jdk.BooleanFlag",761]
["jdk.BooleanFlag",761]
["jdk.BooleanFlag",761]
["jdk.BooleanFlag",761]
["jdk.BooleanFlag",761]
["jdk.BooleanFlag",761]
["jdk.BooleanFlag",761]
["jdk.BooleanFlag",761]
["jdk.BooleanFlag",761]
["jdk.BooleanFlag",761]
["jdk.BooleanFlag",761]
["jdk.BooleanFlag",761]
["jdk.BooleanFlag",761]
["jdk.BooleanFlag",761]
["jdk.BooleanFlag",{"$f":"COUNTIF($A$2:$A$65087,A1027)","v":761}]
["jdk.BooleanFlag",761]
["jdk.BooleanFlag",761]
["jdk.BooleanFlag",761]
["jdk.BooleanFlag",761]
["jdk.BooleanFlag",761]
["jdk.BooleanFlag",761]
["jdk.BooleanFlag",761]
["jdk.BooleanFlag",761]
["jdk.BooleanFlag",761]
["jdk.BooleanFlag",761]
["jdk.BooleanFlag",761]
["jdk.BooleanFlag",761]
["jdk.BooleanFlag",761]
["jdk.BooleanFlag",761]
["jdk.BooleanFlag",761]
["jdk.BooleanFlag",761]
["jdk.BooleanFlag",761]
["jdk.BooleanFlag",761]
["jdk.BooleanFlag",761]
["jdk.BooleanFlag",761]
["jdk.BooleanFlag",761]
["jdk.BooleanFlag",761]
["jdk.BooleanFlag",761]
["jdk.BooleanFlag",761]
["jdk.BooleanFlag",761]
["jdk.BooleanFlag",761]
["jdk.BooleanFlag",761]
["jdk.BooleanFlag",761]
["jdk.BooleanFlag",761]
["jdk.BooleanFlag",761]
["jdk.BooleanFlag",761]
["jdk.BooleanFlag",761]
["jdk.BooleanFlag",761]
["jdk.BooleanFlag",761]
["jdk.BooleanFlag",761]
["jdk.BooleanFlag",761]
["jdk.BooleanFlag",761]
["jdk.BooleanFlag",761]
["jdk.BooleanFlag",761]
["jdk.BooleanFlag",761]
["jdk.BooleanFlag",761]
["jdk.BooleanFlag",761]
["jdk.BooleanFlag",761]
["jdk.BooleanFlag",761]
["jdk.BooleanFlag",761]
["jdk.BooleanFlag",761]
["jdk.BooleanFlag",761]
["jdk.BooleanFlag",761]
["jdk.BooleanFlag",761]
["jdk.BooleanFlag",761]
["jdk.BooleanFlag",761]
["jdk.BooleanFlag",761]
["jdk.BooleanFlag",761]
["jdk.BooleanFlag",761]
["jdk.BooleanFlag",761]
["jdk.BooleanFlag",761]
["jdk.BooleanFlag",761]
["jdk.BooleanFlag",761]
["jdk.BooleanFlag",761]
["jdk.BooleanFlag",761]
["jdk.BooleanFlag",761]
["jdk.BooleanFlag",761]
["jdk.BooleanFlag",761]
["jdk.BooleanFlag",{"$f":"COUNTIF($A$2:$A$65087,A1091)","v":761}]
["jdk.BooleanFlag",761]
["jdk.BooleanFlag",761]
["jdk.BooleanFlag",761]
["jdk.BooleanFlag",761]
["jdk.BooleanFlag",761]
["jdk.BooleanFlag",761]
["jdk.BooleanFlag",761]
["jdk.BooleanFlag",761]
["jdk.BooleanFlag",761]
["jdk.BooleanFlag",761]
["jdk.BooleanFlag",761]
["jdk.BooleanFlag",761]
["jdk.BooleanFlag",761]
["jdk.BooleanFlag",761]
["jdk.BooleanFlag",761]
["jdk.BooleanFlag",761]
["jdk.BooleanFlag",761]
["jdk.BooleanFlag",761]
["jdk.BooleanFlag",761]
["jdk.BooleanFlag",761]
["jdk.BooleanFlag",761]
["jdk.BooleanFlag",761]
["jdk.BooleanFlag",761]
["jdk.BooleanFlag",761]
["jdk.BooleanFlag",761]
["jdk.BooleanFlag",761]
["jdk.BooleanFlag",761]
["jdk.BooleanFlag",761]
["jdk.BooleanFlag",761]
["jdk.BooleanFlag",761]
["jdk.BooleanFlag",761]
["jdk.BooleanFlag",761]
["jdk.BooleanFlag",761]
["jdk.BooleanFlag",761]
["jdk.BooleanFlag",761]
["jdk.BooleanFlag",761]
["jdk.BooleanFlag",761]
["jdk.BooleanFlag",761]
["jdk.BooleanFlag",761]
["jdk.BooleanFlag",761]
["jdk.BooleanFlag",761]
["jdk.BooleanFlag",761]
["jdk.BooleanFlag",761]
["jdk.BooleanFlag",761]
["jdk.BooleanFlag",761]
["jdk.BooleanFlag",761]
["jdk.BooleanFlag",761]
["jdk.BooleanFlag",761]
["jdk.BooleanFlag",761]
["jdk.BooleanFlag",761]
["jdk.BooleanFlag",761]
["jdk.BooleanFlag",761]
["jdk.BooleanFlag",761]
["jdk.BooleanFlag",761]
["jdk.BooleanFlag",761]
["jdk.BooleanFlag",761]
["jdk.BooleanFlag",761]
["jdk.BooleanFlag",761]
["jdk.BooleanFlag",761]
["jdk.BooleanFlag",761]
["jdk.BooleanFlag",761]
["jdk.BooleanFlag",761]
["jdk.BooleanFlag",761]
["jdk.BooleanFlag",{"$f":"COUNTIF($A$2:$A$65087,A1155)","v":761}]
["jdk.BooleanFlag",761]
["jdk.BooleanFlag",761]
["jdk.BooleanFlag",761]
["jdk.BooleanFlag",761]
["jdk.BooleanFlag",761]
["jdk.BooleanFlag",761]
["jdk.BooleanFlag",761]
["jdk.BooleanFlag",761]
["jdk.BooleanFlag",761]
["jdk.BooleanFlag",761]
["jdk.BooleanFlag",761]
["jdk.BooleanFlag",761]
["jdk.BooleanFlag",761]
["jdk.BooleanFlag",761]
["jdk.BooleanFlag",761]
["jdk.BooleanFlag",761]
["jdk.BooleanFlag",761]
["jdk.BooleanFlag",761]
["jdk.BooleanFlag",761]
["jdk.BooleanFlag",761]
["jdk.BooleanFlag",761]
["jdk.BooleanFlag",761]
["jdk.BooleanFlag",761]
["jdk.BooleanFlag",761]
["jdk.BooleanFlag",761]
["jdk.BooleanFlag",761]
["jdk.BooleanFlag",761]
["jdk.BooleanFlag",761]
["jdk.BooleanFlag",761]
["jdk.BooleanFlag",761]
["jdk.BooleanFlag",761]
["jdk.BooleanFlag",761]
["jdk.BooleanFlag",761]
["jdk.BooleanFlag",761]
["jdk.BooleanFlag",761]
["jdk.BooleanFlag",761]
["jdk.BooleanFlag",761]
["jdk.BooleanFlag",761]
["jdk.BooleanFlag",761]
["jdk.BooleanFlag",761]
["jdk.BooleanFlag",761]
["jdk.BooleanFlag",761]
["jdk.BooleanFlag",761]
["jdk.BooleanFlag",761]
["jdk.BooleanFlag",761]
["jdk.BooleanFlag",761]
["jdk.BooleanFlag",761]
["jdk.BooleanFlag",761]
["jdk.BooleanFlag",761]
["jdk.BooleanFlag",761]
["jdk.BooleanFlag",761]
["jdk.BooleanFlag",761]
["jdk.BooleanFlag",761]
["jdk.BooleanFlag",761]
["jdk.BooleanFlag",761]
["jdk.BooleanFlag",761]
["jdk.BooleanFlag",761]
["jdk.BooleanFlag",761]
["jdk.BooleanFlag",761]
["jdk.BooleanFlag",761]
["jdk.BooleanFlag",761]
["jdk.BooleanFlag",761]
["jdk.BooleanFlag",761]
["jdk.BooleanFlag",{"$f":"COUNTIF($A$2:$A$65087,A1219)","v":761}]
["jdk.BooleanFlag",761]
["jdk.BooleanFlag",761]
["jdk.BooleanFlag",761]
["jdk.BooleanFlag",761]
["jdk.BooleanFlag",761]
["jdk.BooleanFlag",761]
["jdk.BooleanFlag",761]
["jdk.BooleanFlag",761]
["jdk.BooleanFlag",761]
["jdk.BooleanFlag",761]
["jdk.BooleanFlag",761]
["jdk.BooleanFlag",761]
["jdk.BooleanFlag",761]
["jdk.BooleanFlag",761]
["jdk.BooleanFlag",761]
["jdk.BooleanFlag",761]
["jdk.BooleanFlag",761]
["jdk.BooleanFlag",761]
["jdk.BooleanFlag",761]
["jdk.BooleanFlag",761]
["jdk.BooleanFlag",761]
["jdk.BooleanFlag",761]
["jdk.BooleanFlag",761]
["jdk.BooleanFlag",761]
["jdk.BooleanFlag",761]
["jdk.BooleanFlag",761]
["jdk.BooleanFlag",761]
["jdk.BooleanFlag",761]
["jdk.BooleanFlag",761]
["jdk.BooleanFlag",761]
["jdk.BooleanFlag",761]
["jdk.BooleanFlag",761]
["jdk.BooleanFlag",761]
["jdk.BooleanFlag",761]
["jdk.BooleanFlag",761]
["jdk.BooleanFlag",761]
["jdk.BooleanFlag",761]
["jdk.BooleanFlag",761]
["jdk.BooleanFlag",761]
["jdk.BooleanFlag",761]
["jdk.BooleanFlag",761]
["jdk.BooleanFlag",761]
["jdk.BooleanFlag",761]
["jdk.BooleanFlag",761]
["jdk.BooleanFlag",761]
["jdk.BooleanFlag",761]
["jdk.BooleanFlag",761]
["jdk.BooleanFlag",761]
["jdk.BooleanFlag",761]
["jdk.BooleanFlag",761]
["jdk.BooleanFlag",761]
["jdk.BooleanFlag",761]
["jdk.BooleanFlag",761]
["jdk.BooleanFlag",761]
["jdk.BooleanFlag",761]
["jdk.BooleanFlag",761]
["jdk.BooleanFlag",761]
["jdk.BooleanFlag",761]
["jdk.BooleanFlag",761]
["jdk.BooleanFlag",761]
["jdk.BooleanFlag",761]
["jdk.BooleanFlag",761]
["jdk.BooleanFlag",761]
["jdk.BooleanFlag",{"$f":"COUNTIF($A$2:$A$65087,A1283)","v":761}]
["jdk.BooleanFlag",761]
["jdk.BooleanFlag",761]
["jdk.BooleanFlag",761]
["jdk.BooleanFlag",761]
["jdk.BooleanFlag",761]
["jdk.BooleanFlag",761]
["jdk.BooleanFlag",761]
["jdk.BooleanFlag",761]
["jdk.BooleanFlag",761]
["jdk.BooleanFlag",761]
["jdk.BooleanFlag",761]
["jdk.BooleanFlag",761]
["jdk.BooleanFlag",761]
["jdk.BooleanFlag",761]
["jdk.BooleanFlag",761]
["jdk.BooleanFlag",761]
["jdk.BooleanFlag",761]
["jdk.BooleanFlag",761]
["jdk.BooleanFlag",761]
["jdk.BooleanFlag",761]
["jdk.BooleanFlag",761]
["jdk.BooleanFlag",761]
["jdk.BooleanFlag",761]
["jdk.BooleanFlag",761]
["jdk.BooleanFlag",761]
["jdk.BooleanFlag",761]
["jdk.BooleanFlag",761]
["jdk.BooleanFlag",761]
["jdk.BooleanFlag",761]
["jdk.BooleanFlag",761]
["jdk.BooleanFlag",761]
["jdk.BooleanFlag",761]
["jdk.BooleanFlag",761]
["jdk.BooleanFlag",761]
["jdk.BooleanFlag",761]
["jdk.BooleanFlag",761]
["jdk.BooleanFlag",761]
["jdk.BooleanFlag",761]
["jdk.BooleanFlag",761]
["jdk.BooleanFlag",761]
["jdk.BooleanFlag",761]
["jdk.BooleanFlag",761]
["jdk.BooleanFlag",761]
["jdk.BooleanFlag",761]
["jdk.BooleanFlag",761]
["jdk.BooleanFlag",761]
["jdk.BooleanFlag",761]
["jdk.BooleanFlag",761]
["jdk.BooleanFlag",761]
["jdk.BooleanFlag",761]
["jdk.BooleanFlag",761]
["jdk.BooleanFlag",761]
["jdk.BooleanFlag",761]
["jdk.BooleanFlag",761]
["jdk.BooleanFlag",761]
["jdk.BooleanFlag",761]
["jdk.BooleanFlag",761]
["jdk.BooleanFlag",761]
["jdk.BooleanFlag",761]
["jdk.BooleanFlag",761]
["jdk.BooleanFlag",761]
["jdk.BooleanFlag",761]
["jdk.BooleanFlag",761]
["jdk.BooleanFlag",{"$f":"COUNTIF($A$2:$A$65087,A1347)","v":761}]
["jdk.BooleanFlag",761]
["jdk.BooleanFlag",761]
["jdk.BooleanFlag",761]
["jdk.BooleanFlag",761]
["jdk.BooleanFlag",761]
["jdk.BooleanFlag",761]
["jdk.BooleanFlag",761]
["jdk.BooleanFlag",761]
["jdk.BooleanFlag",761]
["jdk.BooleanFlag",761]
["jdk.BooleanFlag",761]
["jdk.BooleanFlag",761]
["jdk.BooleanFlag",761]
["jdk.BooleanFlag",761]
["jdk.BooleanFlag",761]
["jdk.BooleanFlag",761]
["jdk.BooleanFlag",761]
["jdk.BooleanFlag",761]
["jdk.BooleanFlag",761]
["jdk.BooleanFlag",761]
["jdk.BooleanFlag",761]
["jdk.BooleanFlag",761]
["jdk.BooleanFlag",761]
["jdk.BooleanFlag",761]
["jdk.BooleanFlag",761]
["jdk.BooleanFlag",761]
["jdk.BooleanFlag",761]
["jdk.BooleanFlag",761]
["jdk.BooleanFlag",761]
["jdk.BooleanFlag",761]
["jdk.BooleanFlag",761]
["jdk.BooleanFlag",761]
["jdk.BooleanFlag",761]
["jdk.BooleanFlag",761]
["jdk.BooleanFlag",761]
["jdk.BooleanFlag",761]
["jdk.BooleanFlag",761]
["jdk.BooleanFlag",761]
["jdk.BooleanFlag",761]
["jdk.BooleanFlag",761]
["jdk.BooleanFlag",761]
["jdk.BooleanFlag",761]
["jdk.BooleanFlag",761]
["jdk.BooleanFlag",761]
["jdk.BooleanFlag",761]
["jdk.BooleanFlag",761]
["jdk.BooleanFlag",761]
["jdk.BooleanFlag",761]
["jdk.BooleanFlag",761]
["jdk.BooleanFlag",761]
["jdk.BooleanFlag",761]
["jdk.BooleanFlag",761]
["jdk.BooleanFlag",761]
["jdk.BooleanFlag",761]
["jdk.BooleanFlag",761]
["jdk.BooleanFlag",761]
["jdk.BooleanFlag",761]
["jdk.BooleanFlag",761]
["jdk.BooleanFlag",761]
["jdk.BooleanFlag",761]
["jdk.BooleanFlag",761]
["jdk.BooleanFlag",761]
["jdk.BooleanFlag",761]
["jdk.BooleanFlag",{"$f":"COUNTIF($A$2:$A$65087,A1411)","v":761}]
["jdk.BooleanFlag",761]
["jdk.BooleanFlag",761]
["jdk.BooleanFlag",761]
["jdk.BooleanFlag",761]
["jdk.BooleanFlag",761]
["jdk.BooleanFlag",761]
["jdk.BooleanFlag",761]
["jdk.BooleanFlag",761]
["jdk.BooleanFlag",761]
["jdk.BooleanFlag",761]
["jdk.BooleanFlag",761]
["jdk.BooleanFlag",761]
["jdk.BooleanFlag",761]
["jdk.BooleanFlag",761]
["jdk.BooleanFlag",761]
["jdk.BooleanFlag",761]
["jdk.BooleanFlag",761]
["jdk.BooleanFlag",761]
["jdk.BooleanFlag",761]
["jdk.BooleanFlag",761]
["jdk.BooleanFlag",761]
["jdk.BooleanFlag",761]
["jdk.BooleanFlag",761]
["jdk.BooleanFlag",761]
["jdk.BooleanFlag",761]
["jdk.BooleanFlag",761]
["jdk.BooleanFlag",761]
["jdk.BooleanFlag",761]
["jdk.BooleanFlag",761]
["jdk.BooleanFlag",761]
["jdk.BooleanFlag",761]
["jdk.BooleanFlag",761]
["jdk.BooleanFlag",761]
["jdk.BooleanFlag",761]
["jdk.BooleanFlag",761]
["jdk.BooleanFlag",761]
["jdk.BooleanFlag",761]
["jdk.BooleanFlag",761]
["jdk.BooleanFlag",761]
["jdk.BooleanFlag",761]
["jdk.BooleanFlag",761]
["jdk.BooleanFlag",761]
["jdk.BooleanFlag",761]
["jdk.BooleanFlag",761]
["jdk.BooleanFlag",761]
["jdk.BooleanFlag",761]
["jdk.BooleanFlag",761]
["jdk.BooleanFlag",761]
["jdk.BooleanFlag",761]
["jdk.BooleanFlag",761]
["jdk.BooleanFlag",761]
["jdk.BooleanFlag",761]
["jdk.BooleanFlag",761]
["jdk.BooleanFlag",761]
["jdk.BooleanFlag",761]
["jdk.BooleanFlag",761]
["jdk.BooleanFlag",761]
["jdk.BooleanFlag",761]
["jdk.BooleanFlag",761]
["jdk.BooleanFlag",761]
["jdk.BooleanFlag",761]
["jdk.BooleanFlag",761]
["jdk.BooleanFlag",761]
["jdk.BooleanFlag",{"$f":"COUNTIF($A$2:$A$65087,A1475)","v":761}]
["jdk.BooleanFlag",761]
["jdk.BooleanFlag",761]
["jdk.BooleanFlag",761]
["jdk.BooleanFlag",761]
["jdk.BooleanFlag",761]
["jdk.BooleanFlag",761]
["jdk.BooleanFlag",761]
["jdk.BooleanFlag",761]
["jdk.BooleanFlag",761]
["jdk.BooleanFlag",761]
["jdk.BooleanFlag",761]
["jdk.BooleanFlag",761]
["jdk.BooleanFlag",761]
["jdk.BooleanFlag",761]
["jdk.BooleanFlag",761]
["jdk.BooleanFlag",761]
["jdk.BooleanFlag",761]
["jdk.BooleanFlag",761]
["jdk.BooleanFlag",761]
["jdk.BooleanFlag",761]
["jdk.BooleanFlag",761]
["jdk.BooleanFlag",761]
["jdk.BooleanFlag",761]
["jdk.BooleanFlag",761]
["jdk.BooleanFlag",761]
["jdk.BooleanFlag",761]
["jdk.BooleanFlag",761]
["jdk.BooleanFlag",761]
["jdk.BooleanFlag",761]
["jdk.BooleanFlag",761]
["jdk.BooleanFlag",761]
["jdk.BooleanFlag",761]
["jdk.BooleanFlag",761]
["jdk.BooleanFlag",761]
["jdk.BooleanFlag",761]
["jdk.BooleanFlag",761]
["jdk.BooleanFlag",761]
["jdk.BooleanFlag",761]
["jdk.BooleanFlag",761]
["jdk.BooleanFlag",761]
["jdk.BooleanFlag",761]
["jdk.BooleanFlag",761]
["jdk.BooleanFlag",761]
["jdk.BooleanFlag",761]
["jdk.BooleanFlag",761]
["jdk.BooleanFlag",761]
["jdk.BooleanFlag",761]
["jdk.BooleanFlag",761]
["jdk.BooleanFlag",761]
["jdk.BooleanFlag",761]
["jdk.BooleanFlag",761]
["jdk.BooleanFlag",761]
["jdk.BooleanFlag",761]
["jdk.BooleanFlag",761]
["jdk.BooleanFlag",761]
["jdk.BooleanFlag",761]
["jdk.BooleanFlag",761]
["jdk.BooleanFlag",761]
["jdk.BooleanFlag",761]
["jdk.BooleanFlag",761]
["jdk.BooleanFlag",761]
["jdk.BooleanFlag",761]
["jdk.BooleanFlag",761]
["jdk.BooleanFlag",{"$f":"COUNTIF($A$2:$A$65087,A1539)","v":761}]
["jdk.BooleanFlag",761]
["jdk.BooleanFlag",761]
["jdk.BooleanFlag",761]
["jdk.BooleanFlag",761]
["jdk.BooleanFlag",761]
["jdk.BooleanFlag",761]
["jdk.BooleanFlag",761]
["jdk.BooleanFlag",761]
["jdk.BooleanFlag",761]
["jdk.BooleanFlag",761]
["jdk.ClassDefine",72]
["jdk.ClassDefine",72]
["jdk.ClassDefine",72]
["jdk.ClassDefine",72]
["jdk.ClassDefine",72]
["jdk.ClassDefine",72]
["jdk.ClassDefine",72]
["jdk.ClassDefine",72]
["jdk.ClassDefine",72]
["jdk.ClassDefine",72]
["jdk.ClassDefine",72]
["jdk.ClassDefine",72]
["jdk.ClassDefine",72]
["jdk.ClassDefine",72]
["jdk.ClassDefine",72]
["jdk.ClassDefine",72]
["jdk.ClassDefine",72]
["jdk.ClassDefine",72]
["jdk.ClassDefine",72]
["jdk.ClassDefine",72]
["jdk.ClassDefine",72]
["jdk.ClassDefine",72]
["jdk.ClassDefine",72]
["jdk.ClassDefine",72]
["jdk.ClassDefine",72]
["jdk.ClassDefine",72]
["jdk.ClassDefine",72]
["jdk.ClassDefine",72]
["jdk.ClassDefine",72]
["jdk.ClassDefine",72]
["jdk.ClassDefine",72]
["jdk.ClassDefine",72]
["jdk.ClassDefine",72]
["jdk.ClassDefine",72]
["jdk.ClassDefine",72]
["jdk.ClassDefine",72]
["jdk.ClassDefine",72]
["jdk.ClassDefine",72]
["jdk.ClassDefine",72]
["jdk.ClassDefine",72]
["jdk.ClassDefine",72]
["jdk.ClassDefine",72]
["jdk.ClassDefine",72]
["jdk.ClassDefine",72]
["jdk.ClassDefine",72]
["jdk.ClassDefine",72]
["jdk.ClassDefine",72]
["jdk.ClassDefine",72]
["jdk.ClassDefine",72]
["jdk.ClassDefine",72]
["jdk.ClassDefine",72]
["jdk.ClassDefine",72]
["jdk.ClassDefine",72]
["jdk.ClassDefine",{"$f":"COUNTIF($A$2:$A$65087,A1603)","v":72}]
["jdk.ClassDefine",72]
["jdk.ClassDefine",72]
["jdk.ClassDefine",72]
["jdk.ClassDefine",72]
["jdk.ClassDefine",72]
["jdk.ClassDefine",72]
["jdk.ClassDefine",72]
["jdk.ClassDefine",72]
["jdk.ClassDefine",72]
["jdk.ClassDefine",72]
["jdk.ClassDefine",72]
["jdk.ClassDefine",72]
["jdk.ClassDefine",72]
["jdk.ClassDefine",72]
["jdk.ClassDefine",72]
["jdk.ClassDefine",72]
["jdk.ClassDefine",72]
["jdk.ClassDefine",72]
["jdk.ClassLoad",114]
["jdk.ClassLoad",114]
["jdk.ClassLoad",114]
["jdk.ClassLoad",114]
["jdk.ClassLoad",114]
["jdk.ClassLoad",114]
["jdk.ClassLoad",114]
["jdk.ClassLoad",114]
["jdk.ClassLoad",114]
["jdk.ClassLoad",114]
["jdk.ClassLoad",114]
["jdk.ClassLoad",114]
["jdk.ClassLoad",114]
["jdk.ClassLoad",114]
["jdk.ClassLoad",114]
["jdk.ClassLoad",114]
["jdk.ClassLoad",114]
["jdk.ClassLoad",114]
["jdk.ClassLoad",114]
["jdk.ClassLoad",114]
["jdk.ClassLoad",114]
["jdk.ClassLoad",114]
["jdk.ClassLoad",114]
["jdk.ClassLoad",114]
["jdk.ClassLoad",114]
["jdk.ClassLoad",114]
["jdk.ClassLoad",114]
["jdk.ClassLoad",114]
["jdk.ClassLoad",114]
["jdk.ClassLoad",114]
["jdk.ClassLoad",114]
["jdk.ClassLoad",114]
["jdk.ClassLoad",114]
["jdk.ClassLoad",114]
["jdk.ClassLoad",114]
["jdk.ClassLoad",114]
["jdk.ClassLoad",114]
["jdk.ClassLoad",114]
["jdk.ClassLoad",114]
["jdk.ClassLoad",114]
["jdk.ClassLoad",114]
["jdk.ClassLoad",114]
["jdk.ClassLoad",114]
["jdk.ClassLoad",114]
["jdk.ClassLoad",114]
["jdk.ClassLoad",{"$f":"COUNTIF($A$2:$A$65087,A1667)","v":114}]
["jdk.ClassLoad",114]
["jdk.ClassLoad",114]
["jdk.ClassLoad",114]
["jdk.ClassLoad",114]
["jdk.ClassLoad",114]
["jdk.ClassLoad",114]
["jdk.ClassLoad",114]
["jdk.ClassLoad",114]
["jdk.ClassLoad",114]
["jdk.ClassLoad",114]
["jdk.ClassLoad",114]
["jdk.ClassLoad",114]
["jdk.ClassLoad",114]
["jdk.ClassLoad",114]
["jdk.ClassLoad",114]
["jdk.ClassLoad",114]
["jdk.ClassLoad",114]
["jdk.ClassLoad",114]
["jdk.ClassLoad",114]
["jdk.ClassLoad",114]
["jdk.ClassLoad",114]
["jdk.ClassLoad",114]
["jdk.ClassLoad",114]
["jdk.ClassLoad",114]
["jdk.ClassLoad",114]
["jdk.ClassLoad",114]
["jdk.ClassLoad",114]
["jdk.ClassLoad",114]
["jdk.ClassLoad",114]
["jdk.ClassLoad",114]
["jdk.ClassLoad",114]
["jdk.ClassLoad",114]
["jdk.ClassLoad",114]
["jdk.ClassLoad",114]
["jdk.ClassLoad",114]
["jdk.ClassLoad",114]
["jdk.ClassLoad",114]
["jdk.ClassLoad",114]
["jdk.ClassLoad",114]
["jdk.ClassLoad",114]
["jdk.ClassLoad",114]
["jdk.ClassLoad",114]
["jdk.ClassLoad",114]
["jdk.ClassLoad",114]
["jdk.ClassLoad",114]
["jdk.ClassLoad",114]
["jdk.ClassLoad",114]
["jdk.ClassLoad",114]
["jdk.ClassLoad",114]
["jdk.ClassLoad",114]
["jdk.ClassLoad",114]
["jdk.ClassLoad",114]
["jdk.ClassLoad",114]
["jdk.ClassLoad",114]
["jdk.ClassLoad",114]
["jdk.ClassLoad",114]
["jdk.ClassLoad",114]
["jdk.ClassLoad",114]
["jdk.ClassLoad",114]
["jdk.ClassLoad",114]
["jdk.ClassLoad",114]
["jdk.ClassLoad",114]
["jdk.ClassLoad",114]
["jdk.ClassLoad",{"$f":"COUNTIF($A$2:$A$65087,A1731)","v":114}]
["jdk.ClassLoad",114]
["jdk.ClassLoad",114]
["jdk.ClassLoad",114]
["jdk.ClassLoad",114]
["jdk.ClassLoaderStatistics",555]
["jdk.ClassLoaderStatistics",555]
["jdk.ClassLoaderStatistics",555]
["jdk.ClassLoaderStatistics",555]
["jdk.ClassLoaderStatistics",555]
["jdk.ClassLoaderStatistics",555]
["jdk.ClassLoaderStatistics",555]
["jdk.ClassLoaderStatistics",555]
["jdk.ClassLoaderStatistics",555]
["jdk.ClassLoaderStatistics",555]
["jdk.ClassLoaderStatistics",555]
["jdk.ClassLoaderStatistics",555]
["jdk.ClassLoaderStatistics",555]
["jdk.ClassLoaderStatistics",555]
["jdk.ClassLoaderStatistics",555]
["jdk.ClassLoaderStatistics",555]
["jdk.ClassLoaderStatistics",555]
["jdk.ClassLoaderStatistics",555]
["jdk.ClassLoaderStatistics",555]
["jdk.ClassLoaderStatistics",555]
["jdk.ClassLoaderStatistics",555]
["jdk.ClassLoaderStatistics",555]
["jdk.ClassLoaderStatistics",555]
["jdk.ClassLoaderStatistics",555]
["jdk.ClassLoaderStatistics",555]
["jdk.ClassLoaderStatistics",555]
["jdk.ClassLoaderStatistics",555]
["jdk.ClassLoaderStatistics",555]
["jdk.ClassLoaderStatistics",555]
["jdk.ClassLoaderStatistics",555]
["jdk.ClassLoaderStatistics",555]
["jdk.ClassLoaderStatistics",555]
["jdk.ClassLoaderStatistics",555]
["jdk.ClassLoaderStatistics",555]
["jdk.ClassLoaderStatistics",555]
["jdk.ClassLoaderStatistics",555]
["jdk.ClassLoaderStatistics",555]
["jdk.ClassLoaderStatistics",555]
["jdk.ClassLoaderStatistics",555]
["jdk.ClassLoaderStatistics",555]
["jdk.ClassLoaderStatistics",555]
["jdk.ClassLoaderStatistics",555]
["jdk.ClassLoaderStatistics",555]
["jdk.ClassLoaderStatistics",555]
["jdk.ClassLoaderStatistics",555]
["jdk.ClassLoaderStatistics",555]
["jdk.ClassLoaderStatistics",555]
["jdk.ClassLoaderStatistics",555]
["jdk.ClassLoaderStatistics",555]
["jdk.ClassLoaderStatistics",555]
["jdk.ClassLoaderStatistics",555]
["jdk.ClassLoaderStatistics",555]
["jdk.ClassLoaderStatistics",555]
["jdk.ClassLoaderStatistics",555]
["jdk.ClassLoaderStatistics",555]
["jdk.ClassLoaderStatistics",555]
["jdk.ClassLoaderStatistics",555]
["jdk.ClassLoaderStatistics",555]
["jdk.ClassLoaderStatistics",555]
["jdk.ClassLoaderStatistics",{"$f":"COUNTIF($A$2:$A$65087,A1795)","v":555}]
["jdk.ClassLoaderStatistics",555]
["jdk.ClassLoaderStatistics",555]
["jdk.ClassLoaderStatistics",555]
["jdk.ClassLoaderStatistics",555]
["jdk.ClassLoaderStatistics",555]
["jdk.ClassLoaderStatistics",555]
["jdk.ClassLoaderStatistics",555]
["jdk.ClassLoaderStatistics",555]
["jdk.ClassLoaderStatistics",555]
["jdk.ClassLoaderStatistics",555]
["jdk.ClassLoaderStatistics",555]
["jdk.ClassLoaderStatistics",555]
["jdk.ClassLoaderStatistics",555]
["jdk.ClassLoaderStatistics",555]
["jdk.ClassLoaderStatistics",555]
["jdk.ClassLoaderStatistics",555]
["jdk.ClassLoaderStatistics",555]
["jdk.ClassLoaderStatistics",555]
["jdk.ClassLoaderStatistics",555]
["jdk.ClassLoaderStatistics",555]
["jdk.ClassLoaderStatistics",555]
["jdk.ClassLoaderStatistics",555]
["jdk.ClassLoaderStatistics",555]
["jdk.ClassLoaderStatistics",555]
["jdk.ClassLoaderStatistics",555]
["jdk.ClassLoaderStatistics",555]
["jdk.ClassLoaderStatistics",555]
["jdk.ClassLoaderStatistics",555]
["jdk.ClassLoaderStatistics",555]
["jdk.ClassLoaderStatistics",555]
["jdk.ClassLoaderStatistics",555]
["jdk.ClassLoaderStatistics",555]
["jdk.ClassLoaderStatistics",555]
["jdk.ClassLoaderStatistics",555]
["jdk.ClassLoaderStatistics",555]
["jdk.ClassLoaderStatistics",555]
["jdk.ClassLoaderStatistics",555]
["jdk.ClassLoaderStatistics",555]
["jdk.ClassLoaderStatistics",555]
["jdk.ClassLoaderStatistics",555]
["jdk.ClassLoaderStatistics",555]
["jdk.ClassLoaderStatistics",555]
["jdk.ClassLoaderStatistics",555]
["jdk.ClassLoaderStatistics",555]
["jdk.ClassLoaderStatistics",555]
["jdk.ClassLoaderStatistics",555]
["jdk.ClassLoaderStatistics",555]
["jdk.ClassLoaderStatistics",555]
["jdk.ClassLoaderStatistics",555]
["jdk.ClassLoaderStatistics",555]
["jdk.ClassLoaderStatistics",555]
["jdk.ClassLoaderStatistics",555]
["jdk.ClassLoaderStatistics",555]
["jdk.ClassLoaderStatistics",555]
["jdk.ClassLoaderStatistics",555]
["jdk.ClassLoaderStatistics",555]
["jdk.ClassLoaderStatistics",555]
["jdk.ClassLoaderStatistics",555]
["jdk.ClassLoaderStatistics",555]
["jdk.ClassLoaderStatistics",555]
["jdk.ClassLoaderStatistics",555]
["jdk.ClassLoaderStatistics",555]
["jdk.ClassLoaderStatistics",555]
["jdk.ClassLoaderStatistics",{"$f":"COUNTIF($A$2:$A$65087,A1859)","v":555}]
["jdk.ClassLoaderStatistics",555]
["jdk.ClassLoaderStatistics",555]
["jdk.ClassLoaderStatistics",555]
["jdk.ClassLoaderStatistics",555]
["jdk.ClassLoaderStatistics",555]
["jdk.ClassLoaderStatistics",555]
["jdk.ClassLoaderStatistics",555]
["jdk.ClassLoaderStatistics",555]
["jdk.ClassLoaderStatistics",555]
["jdk.ClassLoaderStatistics",555]
["jdk.ClassLoaderStatistics",555]
["jdk.ClassLoaderStatistics",555]
["jdk.ClassLoaderStatistics",555]
["jdk.ClassLoaderStatistics",555]
["jdk.ClassLoaderStatistics",555]
["jdk.ClassLoaderStatistics",555]
["jdk.ClassLoaderStatistics",555]
["jdk.ClassLoaderStatistics",555]
["jdk.ClassLoaderStatistics",555]
["jdk.ClassLoaderStatistics",555]
["jdk.ClassLoaderStatistics",555]
["jdk.ClassLoaderStatistics",555]
["jdk.ClassLoaderStatistics",555]
["jdk.ClassLoaderStatistics",555]
["jdk.ClassLoaderStatistics",555]
["jdk.ClassLoaderStatistics",555]
["jdk.ClassLoaderStatistics",555]
["jdk.ClassLoaderStatistics",555]
["jdk.ClassLoaderStatistics",555]
["jdk.ClassLoaderStatistics",555]
["jdk.ClassLoaderStatistics",555]
["jdk.ClassLoaderStatistics",555]
["jdk.ClassLoaderStatistics",555]
["jdk.ClassLoaderStatistics",555]
["jdk.ClassLoaderStatistics",555]
["jdk.ClassLoaderStatistics",555]
["jdk.ClassLoaderStatistics",555]
["jdk.ClassLoaderStatistics",555]
["jdk.ClassLoaderStatistics",555]
["jdk.ClassLoaderStatistics",555]
["jdk.ClassLoaderStatistics",555]
["jdk.ClassLoaderStatistics",555]
["jdk.ClassLoaderStatistics",555]
["jdk.ClassLoaderStatistics",555]
["jdk.ClassLoaderStatistics",555]
["jdk.ClassLoaderStatistics",555]
["jdk.ClassLoaderStatistics",555]
["jdk.ClassLoaderStatistics",555]
["jdk.ClassLoaderStatistics",555]
["jdk.ClassLoaderStatistics",555]
["jdk.ClassLoaderStatistics",555]
["jdk.ClassLoaderStatistics",555]
["jdk.ClassLoaderStatistics",555]
["jdk.ClassLoaderStatistics",555]
["jdk.ClassLoaderStatistics",555]
["jdk.ClassLoaderStatistics",555]
["jdk.ClassLoaderStatistics",555]
["jdk.ClassLoaderStatistics",555]
["jdk.ClassLoaderStatistics",555]
["jdk.ClassLoaderStatistics",555]
["jdk.ClassLoaderStatistics",555]
["jdk.ClassLoaderStatistics",555]
["jdk.ClassLoaderStatistics",555]
["jdk.ClassLoaderStatistics",{"$f":"COUNTIF($A$2:$A$65087,A1923)","v":555}]
["jdk.ClassLoaderStatistics",555]
["jdk.ClassLoaderStatistics",555]
["jdk.ClassLoaderStatistics",555]
["jdk.ClassLoaderStatistics",555]
["jdk.ClassLoaderStatistics",555]
["jdk.ClassLoaderStatistics",555]
["jdk.ClassLoaderStatistics",555]
["jdk.ClassLoaderStatistics",555]
["jdk.ClassLoaderStatistics",555]
["jdk.ClassLoaderStatistics",555]
["jdk.ClassLoaderStatistics",555]
["jdk.ClassLoaderStatistics",555]
["jdk.ClassLoaderStatistics",555]
["jdk.ClassLoaderStatistics",555]
["jdk.ClassLoaderStatistics",555]
["jdk.ClassLoaderStatistics",555]
["jdk.ClassLoaderStatistics",555]
["jdk.ClassLoaderStatistics",555]
["jdk.ClassLoaderStatistics",555]
["jdk.ClassLoaderStatistics",555]
["jdk.ClassLoaderStatistics",555]
["jdk.ClassLoaderStatistics",555]
["jdk.ClassLoaderStatistics",555]
["jdk.ClassLoaderStatistics",555]
["jdk.ClassLoaderStatistics",555]
["jdk.ClassLoaderStatistics",555]
["jdk.ClassLoaderStatistics",555]
["jdk.ClassLoaderStatistics",555]
["jdk.ClassLoaderStatistics",555]
["jdk.ClassLoaderStatistics",555]
["jdk.ClassLoaderStatistics",555]
["jdk.ClassLoaderStatistics",555]
["jdk.ClassLoaderStatistics",555]
["jdk.ClassLoaderStatistics",555]
["jdk.ClassLoaderStatistics",555]
["jdk.ClassLoaderStatistics",555]
["jdk.ClassLoaderStatistics",555]
["jdk.ClassLoaderStatistics",555]
["jdk.ClassLoaderStatistics",555]
["jdk.ClassLoaderStatistics",555]
["jdk.ClassLoaderStatistics",555]
["jdk.ClassLoaderStatistics",555]
["jdk.ClassLoaderStatistics",555]
["jdk.ClassLoaderStatistics",555]
["jdk.ClassLoaderStatistics",555]
["jdk.ClassLoaderStatistics",555]
["jdk.ClassLoaderStatistics",555]
["jdk.ClassLoaderStatistics",555]
["jdk.ClassLoaderStatistics",555]
["jdk.ClassLoaderStatistics",555]
["jdk.ClassLoaderStatistics",555]
["jdk.ClassLoaderStatistics",555]
["jdk.ClassLoaderStatistics",555]
["jdk.ClassLoaderStatistics",555]
["jdk.ClassLoaderStatistics",555]
["jdk.ClassLoaderStatistics",555]
["jdk.ClassLoaderStatistics",555]
["jdk.ClassLoaderStatistics",555]
["jdk.ClassLoaderStatistics",555]
["jdk.ClassLoaderStatistics",555]
["jdk.ClassLoaderStatistics",555]
["jdk.ClassLoaderStatistics",555]
["jdk.ClassLoaderStatistics",555]
["jdk.ClassLoaderStatistics",{"$f":"COUNTIF($A$2:$A$65087,A1987)","v":555}]
["jdk.ClassLoaderStatistics",555]
["jdk.ClassLoaderStatistics",555]
["jdk.ClassLoaderStatistics",555]
["jdk.ClassLoaderStatistics",555]
["jdk.ClassLoaderStatistics",555]
["jdk.ClassLoaderStatistics",555]
["jdk.ClassLoaderStatistics",555]
["jdk.ClassLoaderStatistics",555]
["jdk.ClassLoaderStatistics",555]
["jdk.ClassLoaderStatistics",555]
["jdk.ClassLoaderStatistics",555]
["jdk.ClassLoaderStatistics",555]
["jdk.ClassLoaderStatistics",555]
["jdk.ClassLoaderStatistics",555]
["jdk.ClassLoaderStatistics",555]
["jdk.ClassLoaderStatistics",555]
["jdk.ClassLoaderStatistics",555]
["jdk.ClassLoaderStatistics",555]
["jdk.ClassLoaderStatistics",555]
["jdk.ClassLoaderStatistics",555]
["jdk.ClassLoaderStatistics",555]
["jdk.ClassLoaderStatistics",555]
["jdk.ClassLoadingStatistics",299]
["jdk.ClassLoadingStatistics",299]
["jdk.ClassLoadingStatistics",299]
["jdk.ClassLoadingStatistics",299]
["jdk.ClassLoadingStatistics",299]
["jdk.ClassLoadingStatistics",299]
["jdk.ClassLoadingStatistics",299]
["jdk.ClassLoadingStatistics",299]
["jdk.ClassLoadingStatistics",299]
["jdk.ClassLoadingStatistics",299]
["jdk.Compilation",1030]
["jdk.Compilation",1030]
["jdk.Compilation",1030]
["jdk.Compilation",1030]
["jdk.Compilation",1030]
["jdk.Compilation",1030]
["jdk.Compilation",1030]
["jdk.Compilation",1030]
["jdk.Compilation",1030]
["jdk.Compilation",1030]
["jdk.Compilation",1030]
["jdk.Compilation",1030]
["jdk.Compilation",1030]
["jdk.Compilation",1030]
["jdk.Compilation",1030]
["jdk.Compilation",1030]
["jdk.Compilation",1030]
["jdk.Compilation",1030]
["jdk.Compilation",1030]
["jdk.Compilation",1030]
["jdk.Compilation",1030]
["jdk.Compilation",1030]
["jdk.Compilation",1030]
["jdk.Compilation",1030]
["jdk.Compilation",1030]
["jdk.Compilation",1030]
["jdk.Compilation",1030]
["jdk.Compilation",1030]
["jdk.Compilation",1030]
["jdk.Compilation",1030]
["jdk.Compilation",1030]
["jdk.Compilation",1030]
["jdk.Compilation",1030]
["jdk.CompilerInlining",10926]
["jdk.CompilerInlining",10926]
["jdk.CompilerInlining",10926]
["jdk.CompilerInlining",10926]
["jdk.CompilerInlining",10926]
["jdk.CompilerInlining",10926]
["jdk.CompilerInlining",10926]
["jdk.CompilerInlining",10926]
["jdk.CompilerInlining",10926]
["jdk.CompilerInlining",10926]
["jdk.CompilerInlining",10926]
["jdk.CompilerInlining",10926]
["jdk.CompilerInlining",10926]
["jdk.CompilerInlining",10926]
["jdk.CompilerInlining",10926]
["jdk.CompilerInlining",10926]
["jdk.CompilerInlining",10926]
["jdk.CompilerInlining",10926]
["jdk.CompilerInlining",10926]
["jdk.CompilerInlining",10926]
["jdk.CompilerInlining",10926]
["jdk.CompilerInlining",10926]
["jdk.CompilerInlining",10926]
["jdk.CompilerInlining",10926]
["jdk.CompilerInlining",10926]
["jdk.CompilerInlining",10926]
["jdk.CompilerInlining",10926]
["jdk.CompilerInlining",10926]
["jdk.CompilerInlining",10926]
["jdk.CompilerInlining",10926]
["jdk.CompilerInlining",10926]
["jdk.CompilerInlining",10926]
["jdk.CompilerInlining",10926]
["jdk.CompilerInlining",10926]
["jdk.CompilerInlining",10926]
["jdk.CompilerInlining",10926]
["jdk.CompilerInlining",10926]
["jdk.CompilerInlining",10926]
["jdk.CompilerInlining",10926]
["jdk.CompilerInlining",10926]
["jdk.CompilerInlining",10926]
["jdk.CompilerInlining",10926]
["jdk.CompilerInlining",10926]
["jdk.CompilerInlining",10926]
["jdk.CompilerInlining",10926]
["jdk.CompilerInlining",{"$f":"COUNTIF($A$2:$A$65087,A5059)","v":10926}]
["jdk.CompilerInlining",10926]
["jdk.CompilerInlining",10926]
["jdk.CompilerInlining",10926]
["jdk.CompilerInlining",10926]
["jdk.CompilerInlining",10926]
["jdk.CompilerInlining",10926]
["jdk.CompilerInlining",10926]
["jdk.CompilerInlining",10926]
["jdk.CompilerInlining",10926]
["jdk.CompilerInlining",10926]
["jdk.CompilerInlining",10926]
["jdk.CompilerInlining",10926]
["jdk.CompilerInlining",10926]
["jdk.CompilerInlining",10926]
["jdk.CompilerInlining",10926]
["jdk.CompilerInlining",10926]
["jdk.CompilerInlining",10926]
["jdk.CompilerInlining",10926]
["jdk.CompilerInlining",10926]
["jdk.CompilerInlining",10926]
["jdk.CompilerInlining",10926]
["jdk.CompilerInlining",10926]
["jdk.CompilerInlining",10926]
["jdk.CompilerInlining",10926]
["jdk.CompilerInlining",10926]
["jdk.CompilerInlining",10926]
["jdk.CompilerInlining",10926]
["jdk.CompilerInlining",10926]
["jdk.CompilerInlining",10926]
["jdk.CompilerInlining",10926]
["jdk.CompilerInlining",10926]
["jdk.CompilerInlining",10926]
["jdk.CompilerInlining",10926]
["jdk.CompilerInlining",10926]
["jdk.CompilerInlining",10926]
["jdk.CompilerInlining",10926]
["jdk.CompilerInlining",10926]
["jdk.CompilerInlining",10926]
["jdk.CompilerInlining",10926]
["jdk.CompilerInlining",10926]
["jdk.CompilerInlining",10926]
["jdk.CompilerInlining",10926]
["jdk.CompilerInlining",10926]
["jdk.CompilerInlining",10926]
["jdk.CompilerInlining",10926]
["jdk.CompilerInlining",10926]
["jdk.CompilerInlining",10926]
["jdk.CompilerInlining",10926]
["jdk.CompilerInlining",10926]
["jdk.CompilerInlining",10926]
["jdk.CompilerInlining",10926]
["jdk.CompilerInlining",10926]
["jdk.CompilerInlining",10926]
["jdk.CompilerInlining",10926]
["jdk.CompilerInlining",10926]
["jdk.CompilerInlining",10926]
["jdk.CompilerInlining",10926]
["jdk.CompilerInlining",10926]
["jdk.CompilerInlining",10926]
["jdk.CompilerInlining",10926]
["jdk.CompilerInlining",10926]
["jdk.CompilerInlining",10926]
["jdk.CompilerInlining",10926]
["jdk.CompilerInlining",10926]
["jdk.CompilerInlining",10926]
["jdk.CompilerInlining",10926]
["jdk.CompilerInlining",10926]
["jdk.CompilerInlining",10926]
["jdk.CompilerInlining",10926]
["jdk.CompilerInlining",10926]
["jdk.CompilerInlining",10926]
["jdk.CompilerInlining",10926]
["jdk.CompilerInlining",10926]
["jdk.CompilerInlining",10926]
["jdk.CompilerInlining",10926]
["jdk.CompilerInlining",10926]
["jdk.CompilerInlining",10926]
["jdk.CompilerInlining",10926]
["jdk.CompilerInlining",10926]
["jdk.CompilerInlining",10926]
["jdk.CompilerInlining",10926]
["jdk.CompilerInlining",10926]
["jdk.CompilerInlining",10926]
["jdk.CompilerInlining",10926]
["jdk.CompilerInlining",10926]
["jdk.CompilerInlining",10926]
["jdk.CompilerInlining",10926]
["jdk.CompilerInlining",10926]
["jdk.CompilerInlining",10926]
["jdk.CompilerInlining",10926]
["jdk.CompilerInlining",10926]
["jdk.CompilerInlining",10926]
["jdk.CompilerInlining",10926]
["jdk.CompilerInlining",10926]
["jdk.CompilerInlining",10926]
["jdk.CompilerInlining",10926]
["jdk.CompilerInlining",10926]
["jdk.CompilerInlining",10926]
["jdk.CompilerInlining",10926]
["jdk.CompilerInlining",10926]
["jdk.CompilerInlining",10926]
["jdk.CompilerInlining",10926]
["jdk.CompilerInlining",10926]
["jdk.CompilerInlining",10926]
["jdk.CompilerInlining",10926]
["jdk.CompilerInlining",10926]
["jdk.CompilerInlining",10926]
["jdk.CompilerInlining",10926]
["jdk.CompilerInlining",10926]
["jdk.CompilerInlining",10926]
["jdk.CompilerInlining",10926]
["jdk.CompilerInlining",10926]
["jdk.CompilerInlining",10926]
["jdk.CompilerInlining",10926]
["jdk.CompilerInlining",10926]
["jdk.CompilerInlining",10926]
["jdk.CompilerInlining",10926]
["jdk.CompilerInlining",10926]
["jdk.CompilerInlining",10926]
["jdk.CompilerInlining",10926]
["jdk.CompilerInlining",10926]
["jdk.CompilerInlining",10926]
["jdk.CompilerInlining",10926]
["jdk.CompilerInlining",10926]
["jdk.CompilerInlining",10926]
["jdk.CompilerInlining",10926]
["jdk.CompilerInlining",10926]
["jdk.CompilerInlining",10926]
["jdk.CompilerInlining",{"$f":"COUNTIF($A$2:$A$65087,A9091)","v":10926}]
["jdk.CompilerInlining",10926]
["jdk.CompilerInlining",10926]
["jdk.CompilerInlining",10926]
["jdk.CompilerInlining",10926]
["jdk.CompilerInlining",10926]
["jdk.CompilerInlining",10926]
["jdk.CompilerInlining",10926]
["jdk.CompilerInlining",10926]
["jdk.CompilerInlining",10926]
["jdk.CompilerInlining",10926]
["jdk.CompilerInlining",10926]
["jdk.CompilerInlining",10926]
["jdk.CompilerInlining",10926]
["jdk.CompilerInlining",10926]
["jdk.CompilerInlining",10926]
["jdk.CompilerInlining",10926]
["jdk.CompilerInlining",10926]
["jdk.CompilerInlining",10926]
["jdk.CompilerInlining",10926]
["jdk.CompilerInlining",10926]
["jdk.CompilerInlining",10926]
["jdk.CompilerInlining",10926]
["jdk.CompilerInlining",10926]
["jdk.CompilerInlining",10926]
["jdk.CompilerInlining",10926]
["jdk.CompilerInlining",10926]
["jdk.CompilerInlining",10926]
["jdk.CompilerInlining",10926]
["jdk.CompilerInlining",10926]
["jdk.CompilerInlining",10926]
["jdk.CompilerInlining",10926]
["jdk.CompilerInlining",10926]
["jdk.CompilerInlining",10926]
["jdk.CompilerInlining",10926]
["jdk.CompilerInlining",10926]
["jdk.CompilerInlining",10926]
["jdk.CompilerInlining",10926]
["jdk.CompilerInlining",10926]
["jdk.CompilerInlining",10926]
["jdk.CompilerInlining",10926]
["jdk.CompilerInlining",10926]
["jdk.CompilerInlining",10926]
["jdk.CompilerInlining",10926]
["jdk.CompilerInlining",10926]
["jdk.CompilerInlining",10926]
["jdk.CompilerInlining",10926]
["jdk.CompilerInlining",10926]
["jdk.CompilerInlining",10926]
["jdk.CompilerInlining",10926]
["jdk.CompilerInlining",10926]
["jdk.CompilerInlining",10926]
["jdk.CompilerInlining",10926]
["jdk.CompilerInlining",10926]
["jdk.CompilerInlining",10926]
["jdk.CompilerInlining",10926]
["jdk.CompilerInlining",10926]
["jdk.CompilerInlining",10926]
["jdk.CompilerInlining",10926]
["jdk.CompilerInlining",10926]
["jdk.CompilerInlining",10926]
["jdk.CompilerInlining",10926]
["jdk.CompilerInlining",10926]
["jdk.CompilerInlining",10926]
["jdk.CompilerInlining",10926]
["jdk.CompilerInlining",10926]
["jdk.CompilerInlining",10926]
["jdk.CompilerInlining",10926]
["jdk.CompilerInlining",10926]
["jdk.CompilerInlining",10926]
["jdk.CompilerInlining",10926]
["jdk.CompilerInlining",10926]
["jdk.CompilerInlining",10926]
["jdk.CompilerInlining",10926]
["jdk.CompilerInlining",10926]
["jdk.CompilerInlining",10926]
["jdk.CompilerInlining",10926]
["jdk.CompilerInlining",10926]
["jdk.CompilerInlining",10926]
["jdk.CompilerInlining",10926]
["jdk.CompilerInlining",{"$f":"COUNTIF($A$2:$A$65087,A11587)","v":10926}]
["jdk.CompilerInlining",10926]
["jdk.CompilerInlining",10926]
["jdk.CompilerInlining",10926]
["jdk.CompilerInlining",10926]
["jdk.CompilerInlining",10926]
["jdk.CompilerInlining",10926]
["jdk.CompilerInlining",10926]
["jdk.CompilerInlining",10926]
["jdk.CompilerInlining",10926]
["jdk.CompilerInlining",10926]
["jdk.CompilerInlining",10926]
["jdk.CompilerInlining",10926]
["jdk.CompilerInlining",10926]
["jdk.CompilerInlining",10926]
["jdk.CompilerInlining",10926]
["jdk.CompilerInlining",10926]
["jdk.CompilerInlining",10926]
["jdk.CompilerInlining",10926]
["jdk.CompilerInlining",10926]
["jdk.CompilerInlining",{"$f":"COUNTIF($A$2:$A$65087,A12227)","v":10926}]
["jdk.CompilerInlining",10926]
["jdk.CompilerInlining",10926]
["jdk.CompilerInlining",10926]
["jdk.CompilerInlining",10926]
["jdk.CompilerInlining",10926]
["jdk.CompilerInlining",10926]
["jdk.CompilerInlining",10926]
["jdk.CompilerInlining",10926]
["jdk.CompilerInlining",10926]
["jdk.CompilerInlining",10926]
["jdk.CompilerInlining",10926]
["jdk.CompilerInlining",10926]
["jdk.CompilerInlining",10926]
["jdk.CompilerInlining",10926]
["jdk.CompilerInlining",10926]
["jdk.CompilerInlining",10926]
["jdk.CompilerInlining",10926]
["jdk.CompilerInlining",10926]
["jdk.CompilerInlining",10926]
["jdk.CompilerInlining",10926]
["jdk.CompilerInlining",10926]
["jdk.CompilerInlining",10926]
["jdk.CompilerInlining",10926]
["jdk.CompilerInlining",10926]
["jdk.CompilerInlining",10926]
["jdk.CompilerInlining",10926]
["jdk.CompilerInlining",10926]
["jdk.CompilerInlining",10926]
["jdk.CompilerInlining",{"$f":"COUNTIF($A$2:$A$65087,A13123)","v":10926}]
["jdk.CompilerInlining",10926]
["jdk.CompilerInlining",10926]
["jdk.CompilerInlining",10926]
["jdk.CompilerInlining",10926]
["jdk.CompilerInlining",10926]
["jdk.CompilerInlining",{"$f":"COUNTIF($A$2:$A$65087,A13315)","v":10926}]
["jdk.CompilerInlining",10926]
["jdk.CompilerInlining",10926]
["jdk.CompilerInlining",10926]
["jdk.CompilerInlining",10926]
["jdk.CompilerInlining",10926]
["jdk.CompilerInlining",10926]
["jdk.CompilerInlining",10926]
["jdk.CompilerInlining",10926]
["jdk.CompilerInlining",10926]
["jdk.CompilerInlining",10926]
["jdk.CompilerInlining",10926]
["jdk.CompilerInlining",10926]
["jdk.CompilerInlining",10926]
["jdk.CompilerInlining",10926]
["jdk.CompilerInlining",10926]
["jdk.CompilerInlining",10926]
["jdk.CompilerInlining",10926]
["jdk.CompilerInlining",10926]
["jdk.CompilerInlining",10926]
["jdk.CompilerInlining",10926]
["jdk.CompilerInlining",10926]
["jdk.CompilerInlining",10926]
["jdk.CompilerInlining",10926]
["jdk.CompilerInlining",10926]
["jdk.CompilerInlining",10926]
["jdk.CompilerInlining",10926]
["jdk.CompilerInlining",10926]
["jdk.CompilerInlining",10926]
["jdk.CompilerInlining",10926]
["jdk.CompilerInlining",10926]
["jdk.CompilerInlining",10926]
["jdk.CompilerInlining",10926]
["jdk.CompilerInlining",10926]
["jdk.CompilerInlining",10926]
["jdk.CompilerInlining",10926]
["jdk.CompilerInlining",10926]
["jdk.CompilerInlining",10926]
["jdk.CompilerInlining",10926]
["jdk.CompilerInlining",10926]
["jdk.CompilerPhase",4675]
["jdk.CompilerPhase",4675]
["jdk.CompilerPhase",4675]
["jdk.CompilerPhase",4675]
["jdk.CompilerPhase",4675]
["jdk.CompilerPhase",4675]
["jdk.CompilerPhase",4675]
["jdk.CompilerPhase",4675]
["jdk.CompilerPhase",4675]
["jdk.CompilerPhase",4675]
["jdk.CompilerPhase",4675]
["jdk.CompilerPhase",4675]
["jdk.CompilerPhase",4675]
["jdk.CompilerPhase",4675]
["jdk.CompilerPhase",4675]
["jdk.CompilerPhase",4675]
["jdk.CompilerPhase",4675]
["jdk.CompilerPhase",4675]
["jdk.CompilerPhase",4675]
["jdk.CompilerPhase",4675]
["jdk.CompilerPhase",4675]
["jdk.CompilerPhase",4675]
["jdk.CompilerPhase",4675]
["jdk.CompilerPhase",4675]
["jdk.CompilerPhase",4675]
["jdk.CompilerPhase",4675]
["jdk.CompilerPhase",4675]
["jdk.CompilerPhase",4675]
["jdk.CompilerPhase",4675]
["jdk.CompilerPhase",4675]
["jdk.CompilerPhase",4675]
["jdk.CompilerPhase",4675]
["jdk.CompilerPhase",4675]
["jdk.CompilerPhase",4675]
["jdk.CompilerPhase",4675]
["jdk.CompilerPhase",4675]
["jdk.CompilerPhase",4675]
["jdk.CompilerPhase",4675]
["jdk.CompilerPhase",4675]
["jdk.CompilerPhase",4675]
["jdk.CompilerPhase",4675]
["jdk.CompilerPhase",4675]
["jdk.CompilerPhase",4675]
["jdk.CompilerPhase",4675]
["jdk.CompilerPhase",4675]
["jdk.CompilerPhase",4675]
["jdk.CompilerPhase",4675]
["jdk.CompilerPhase",4675]
["jdk.CompilerPhase",4675]
["jdk.CompilerPhase",4675]
["jdk.CompilerPhase",4675]
["jdk.CompilerPhase",4675]
["jdk.CompilerPhase",4675]
["jdk.CompilerPhase",4675]
["jdk.CompilerPhase",{"$f":"COUNTIF($A$2:$A$65087,A16259)","v":4675}]
["jdk.CompilerPhase",4675]
["jdk.CompilerPhase",4675]
["jdk.CompilerPhase",4675]
["jdk.CompilerPhase",4675]
["jdk.CompilerPhase",4675]
["jdk.CompilerPhase",4675]
["jdk.CompilerPhase",4675]
["jdk.CompilerPhase",4675]
["jdk.CompilerPhase",4675]
["jdk.CompilerPhase",4675]
["jdk.CompilerPhase",4675]
["jdk.CompilerPhase",4675]
["jdk.CompilerPhase",4675]
["jdk.CompilerPhase",4675]
["jdk.CompilerPhase",4675]
["jdk.CompilerPhase",4675]
["jdk.CompilerPhase",4675]
["jdk.CompilerPhase",4675]
["jdk.CompilerPhase",4675]
["jdk.CompilerPhase",4675]
["jdk.CompilerPhase",4675]
["jdk.CompilerPhase",4675]
["jdk.CompilerPhase",4675]
["jdk.CompilerPhase",4675]
["jdk.CompilerPhase",4675]
["jdk.CompilerPhase",4675]
["jdk.CompilerPhase",4675]
["jdk.CompilerPhase",4675]
["jdk.CompilerPhase",{"$f":"COUNTIF($A$2:$A$65087,A17155)","v":4675}]
["jdk.CompilerPhase",4675]
["jdk.CompilerPhase",4675]
["jdk.CompilerPhase",4675]
["jdk.CompilerPhase",4675]
["jdk.CompilerPhase",4675]
["jdk.CompilerPhase",4675]
["jdk.CompilerPhase",4675]
["jdk.CompilerPhase",4675]
["jdk.CompilerPhase",4675]
["jdk.CompilerPhase",4675]
["jdk.CompilerPhase",4675]
["jdk.CompilerPhase",4675]
["jdk.CompilerPhase",4675]
["jdk.CompilerPhase",4675]
["jdk.CompilerPhase",4675]
["jdk.CompilerPhase",4675]
["jdk.CompilerPhase",4675]
["jdk.CompilerPhase",4675]
["jdk.CompilerPhase",4675]
["jdk.CompilerPhase",4675]
["jdk.CompilerPhase",4675]
["jdk.CompilerPhase",4675]
["jdk.CompilerPhase",4675]
["jdk.CompilerPhase",4675]
["jdk.CompilerPhase",4675]
["jdk.CompilerPhase",4675]
["jdk.CompilerPhase",4675]
["jdk.CompilerPhase",4675]
["jdk.CompilerPhase",4675]
["jdk.CompilerPhase",4675]
["jdk.CompilerPhase",4675]
["jdk.CompilerPhase",4675]
["jdk.CompilerPhase",4675]
["jdk.CompilerPhase",4675]
["jdk.CompilerPhase",4675]
["jdk.CompilerPhase",4675]
["jdk.CompilerPhase",4675]
["jdk.CompilerPhase",4675]
["jdk.CompilerPhase",4675]
["jdk.CompilerPhase",4675]
["jdk.CompilerPhase",4675]
["jdk.CompilerPhase",4675]
["jdk.CompilerPhase",4675]
["jdk.CompilerPhase",4675]
["jdk.CompilerPhase",4675]
["jdk.CompilerPhase",4675]
["jdk.CompilerPhase",4675]
["jdk.CompilerPhase",4675]
["jdk.CompilerPhase",4675]
["jdk.CompilerPhase",4675]
["jdk.CompilerPhase",4675]
["jdk.CompilerPhase",4675]
["jdk.CompilerPhase",4675]
["jdk.CompilerPhase",4675]
["jdk.CompilerPhase",4675]
["jdk.CompilerPhase",4675]
["jdk.CompilerPhase",4675]
["jdk.CompilerPhase",4675]
["jdk.CompilerPhase",4675]
["jdk.CompilerPhase",4675]
["jdk.CompilerPhase",4675]
["jdk.CompilerPhase",4675]
["jdk.CompilerPhase",4675]
["jdk.CompilerPhase",4675]
["jdk.CompilerPhase",4675]
["jdk.CompilerPhase",4675]
["jdk.CompilerStatistics",299]
["jdk.CompilerStatistics",299]
["jdk.CompilerStatistics",299]
["jdk.CompilerStatistics",299]
["jdk.CompilerStatistics",299]
["jdk.CompilerStatistics",299]
["jdk.CompilerStatistics",299]
["jdk.CompilerStatistics",299]
["jdk.CompilerStatistics",299]
["jdk.CPULoad",299]
["jdk.CPULoad",299]
["jdk.CPULoad",299]
["jdk.CPULoad",299]
["jdk.CPULoad",299]
["jdk.CPULoad",299]
["jdk.CPULoad",299]
["jdk.CPULoad",299]
["jdk.CPULoad",299]
["jdk.CPULoad",299]
["jdk.EvacuationInformation",6]
["jdk.ExceptionStatistics",299]
["jdk.ExceptionStatistics",299]
["jdk.ExceptionStatistics",299]
["jdk.ExceptionStatistics",299]
["jdk.ExceptionStatistics",299]
["jdk.ExceptionStatistics",299]
["jdk.ExceptionStatistics",299]
["jdk.ExceptionStatistics",299]
["jdk.ExceptionStatistics",299]
["jdk.ExecuteVMOperation",31]
["jdk.ExecutionSample",78]
["jdk.ExecutionSample",78]
["jdk.G1BasicIHOP",6]
["jdk.G1HeapRegionInformation",248]
["jdk.G1HeapRegionInformation",248]
["jdk.G1HeapRegionInformation",248]
["jdk.G1HeapRegionInformation",248]
["jdk.G1HeapRegionInformation",248]
["jdk.G1HeapRegionInformation",248]
["jdk.G1HeapRegionInformation",248]
["jdk.G1HeapRegionInformation",248]
["jdk.G1HeapRegionTypeChange",1144]
["jdk.G1HeapRegionTypeChange",1144]
["jdk.G1HeapRegionTypeChange",1144]
["jdk.G1HeapRegionTypeChange",1144]
["jdk.G1HeapRegionTypeChange",1144]
["jdk.G1HeapRegionTypeChange",1144]
["jdk.G1HeapRegionTypeChange",1144]
["jdk.G1HeapRegionTypeChange",1144]
["jdk.G1HeapRegionTypeChange",{"$f":"COUNTIF($A$2:$A$65087,A20803)","v":1144}]
["jdk.G1HeapRegionTypeChange",1144]
["jdk.G1HeapRegionTypeChange",1144]
["jdk.G1HeapRegionTypeChange",1144]
["jdk.G1HeapRegionTypeChange",1144]
["jdk.G1HeapRegionTypeChange",1144]
["jdk.G1HeapRegionTypeChange",1144]
["jdk.G1HeapRegionTypeChange",1144]
["jdk.G1HeapRegionTypeChange",1144]
["jdk.G1HeapRegionTypeChange",1144]
["jdk.G1HeapRegionTypeChange",1144]
["jdk.G1HeapRegionTypeChange",1144]
["jdk.G1HeapRegionTypeChange",1144]
["jdk.G1HeapRegionTypeChange",1144]
["jdk.G1HeapRegionTypeChange",1144]
["jdk.G1HeapRegionTypeChange",1144]
["jdk.G1HeapRegionTypeChange",1144]
["jdk.G1HeapRegionTypeChange",1144]
["jdk.G1HeapRegionTypeChange",1144]
["jdk.G1HeapRegionTypeChange",1144]
["jdk.G1HeapRegionTypeChange",1144]
["jdk.G1HeapRegionTypeChange",1144]
["jdk.G1HeapRegionTypeChange",1144]
["jdk.G1HeapRegionTypeChange",1144]
["jdk.G1HeapRegionTypeChange",1144]
["jdk.G1HeapRegionTypeChange",1144]
["jdk.G1HeapRegionTypeChange",1144]
["jdk.G1HeapRegionTypeChange",1144]
["jdk.G1HeapRegionTypeChange",1144]
["jdk.G1MMU",6]
["jdk.GCPhasePause",8]
["jdk.GCPhasePauseLevel1",32]
["jdk.GCPhasePauseLevel2",21]
["jdk.GCReferenceStatistics",32]
["jdk.InitialEnvironmentVariable",41]
["jdk.InitialEnvironmentVariable",41]
["jdk.IntFlag",6]
["jdk.JavaExceptionThrow",145]
["jdk.JavaExceptionThrow",145]
["jdk.JavaExceptionThrow",145]
["jdk.JavaMonitorEnter",1]
["jdk.JavaMonitorWait",17164]
["jdk.JavaMonitorWait",17164]
["jdk.JavaMonitorWait",17164]
["jdk.JavaMonitorWait",17164]
["jdk.JavaMonitorWait",17164]
["jdk.JavaMonitorWait",17164]
["jdk.JavaMonitorWait",17164]
["jdk.JavaMonitorWait",17164]
["jdk.JavaMonitorWait",17164]
["jdk.JavaMonitorWait",17164]
["jdk.JavaMonitorWait",17164]
["jdk.JavaMonitorWait",17164]
["jdk.JavaMonitorWait",17164]
["jdk.JavaMonitorWait",17164]
["jdk.JavaMonitorWait",17164]
["jdk.JavaMonitorWait",17164]
["jdk.JavaMonitorWait",17164]
["jdk.JavaMonitorWait",17164]
["jdk.JavaMonitorWait",17164]
["jdk.JavaMonitorWait",17164]
["jdk.JavaMonitorWait",17164]
["jdk.JavaMonitorWait",17164]
["jdk.JavaMonitorWait",17164]
["jdk.JavaMonitorWait",17164]
["jdk.JavaMonitorWait",17164]
["jdk.JavaMonitorWait",17164]
["jdk.JavaMonitorWait",17164]
["jdk.JavaMonitorWait",17164]
["jdk.JavaMonitorWait",17164]
["jdk.JavaMonitorWait",17164]
["jdk.JavaMonitorWait",17164]
["jdk.JavaMonitorWait",17164]
["jdk.JavaMonitorWait",17164]
["jdk.JavaMonitorWait",17164]
["jdk.JavaMonitorWait",17164]
["jdk.JavaMonitorWait",17164]
["jdk.JavaMonitorWait",17164]
["jdk.JavaMonitorWait",17164]
["jdk.JavaMonitorWait",17164]
["jdk.JavaMonitorWait",17164]
["jdk.JavaMonitorWait",17164]
["jdk.JavaMonitorWait",17164]
["jdk.JavaMonitorWait",17164]
["jdk.JavaMonitorWait",17164]
["jdk.JavaMonitorWait",17164]
["jdk.JavaMonitorWait",17164]
["jdk.JavaMonitorWait",17164]
["jdk.JavaMonitorWait",17164]
["jdk.JavaMonitorWait",17164]
["jdk.JavaMonitorWait",17164]
["jdk.JavaMonitorWait",17164]
["jdk.JavaMonitorWait",17164]
["jdk.JavaMonitorWait",17164]
["jdk.JavaMonitorWait",17164]
["jdk.JavaMonitorWait",17164]
["jdk.JavaMonitorWait",17164]
["jdk.JavaMonitorWait",17164]
["jdk.JavaMonitorWait",17164]
["jdk.JavaMonitorWait",17164]
["jdk.JavaMonitorWait",17164]
["jdk.JavaMonitorWait",17164]
["jdk.JavaMonitorWait",17164]
["jdk.JavaMonitorWait",17164]
["jdk.JavaMonitorWait",17164]
["jdk.JavaMonitorWait",17164]
["jdk.JavaMonitorWait",17164]
["jdk.JavaMonitorWait",17164]
["jdk.JavaMonitorWait",17164]
["jdk.JavaMonitorWait",17164]
["jdk.JavaMonitorWait",17164]
["jdk.JavaMonitorWait",17164]
["jdk.JavaMonitorWait",17164]
["jdk.JavaMonitorWait",17164]
["jdk.JavaMonitorWait",17164]
["jdk.JavaMonitorWait",17164]
["jdk.JavaMonitorWait",17164]
["jdk.JavaMonitorWait",17164]
["jdk.JavaMonitorWait",17164]
["jdk.JavaMonitorWait",17164]
["jdk.JavaMonitorWait",17164]
["jdk.JavaMonitorWait",17164]
["jdk.JavaMonitorWait",17164]
["jdk.JavaMonitorWait",17164]
["jdk.JavaMonitorWait",17164]
["jdk.JavaMonitorWait",17164]
["jdk.JavaMonitorWait",17164]
["jdk.JavaMonitorWait",17164]
["jdk.JavaMonitorWait",17164]
["jdk.JavaMonitorWait",17164]
["jdk.JavaMonitorWait",17164]
["jdk.JavaMonitorWait",17164]
["jdk.JavaMonitorWait",17164]
["jdk.JavaMonitorWait",17164]
["jdk.JavaMonitorWait",17164]
["jdk.JavaMonitorWait",17164]
["jdk.JavaMonitorWait",17164]
["jdk.JavaMonitorWait",17164]
["jdk.JavaMonitorWait",17164]
["jdk.JavaMonitorWait",17164]
["jdk.JavaMonitorWait",17164]
["jdk.JavaMonitorWait",17164]
["jdk.JavaMonitorWait",17164]
["jdk.JavaMonitorWait",17164]
["jdk.JavaMonitorWait",{"$f":"COUNTIF($A$2:$A$65087,A25283)","v":17164}]
["jdk.JavaMonitorWait",17164]
["jdk.JavaMonitorWait",17164]
["jdk.JavaMonitorWait",17164]
["jdk.JavaMonitorWait",17164]
["jdk.JavaMonitorWait",17164]
["jdk.JavaMonitorWait",17164]
["jdk.JavaMonitorWait",17164]
["jdk.JavaMonitorWait",17164]
["jdk.JavaMonitorWait",17164]
["jdk.JavaMonitorWait",17164]
["jdk.JavaMonitorWait",17164]
["jdk.JavaMonitorWait",17164]
["jdk.JavaMonitorWait",17164]
["jdk.JavaMonitorWait",17164]
["jdk.JavaMonitorWait",17164]
["jdk.JavaMonitorWait",17164]
["jdk.JavaMonitorWait",17164]
["jdk.JavaMonitorWait",17164]
["jdk.JavaMonitorWait",17164]
["jdk.JavaMonitorWait",17164]
["jdk.JavaMonitorWait",17164]
["jdk.JavaMonitorWait",17164]
["jdk.JavaMonitorWait",17164]
["jdk.JavaMonitorWait",17164]
["jdk.JavaMonitorWait",17164]
["jdk.JavaMonitorWait",17164]
["jdk.JavaMonitorWait",17164]
["jdk.JavaMonitorWait",17164]
["jdk.JavaMonitorWait",17164]
["jdk.JavaMonitorWait",17164]
["jdk.JavaMonitorWait",17164]
["jdk.JavaMonitorWait",17164]
["jdk.JavaMonitorWait",17164]
["jdk.JavaMonitorWait",17164]
["jdk.JavaMonitorWait",17164]
["jdk.JavaMonitorWait",17164]
["jdk.JavaMonitorWait",17164]
["jdk.JavaMonitorWait",17164]
["jdk.JavaMonitorWait",17164]
["jdk.JavaMonitorWait",17164]
["jdk.JavaMonitorWait",17164]
["jdk.JavaMonitorWait",17164]
["jdk.JavaMonitorWait",17164]
["jdk.JavaMonitorWait",17164]
["jdk.JavaMonitorWait",17164]
["jdk.JavaMonitorWait",17164]
["jdk.JavaMonitorWait",17164]
["jdk.JavaMonitorWait",17164]
["jdk.JavaMonitorWait",17164]
["jdk.JavaMonitorWait",17164]
["jdk.JavaMonitorWait",17164]
["jdk.JavaMonitorWait",17164]
["jdk.JavaMonitorWait",{"$f":"COUNTIF($A$2:$A$65087,A26947)","v":17164}]
["jdk.JavaMonitorWait",17164]
["jdk.JavaMonitorWait",17164]
["jdk.JavaMonitorWait",17164]
["jdk.JavaMonitorWait",17164]
["jdk.JavaMonitorWait",17164]
["jdk.JavaMonitorWait",17164]
["jdk.JavaMonitorWait",17164]
["jdk.JavaMonitorWait",17164]
["jdk.JavaMonitorWait",17164]
["jdk.JavaMonitorWait",17164]
["jdk.JavaMonitorWait",17164]
["jdk.JavaMonitorWait",17164]
["jdk.JavaMonitorWait",17164]
["jdk.JavaMonitorWait",17164]
["jdk.JavaMonitorWait",17164]
["jdk.JavaMonitorWait",17164]
["jdk.JavaMonitorWait",17164]
["jdk.JavaMonitorWait",17164]
["jdk.JavaMonitorWait",17164]
["jdk.JavaMonitorWait",17164]
["jdk.JavaMonitorWait",17164]
["jdk.JavaMonitorWait",17164]
["jdk.JavaMonitorWait",17164]
["jdk.JavaMonitorWait",17164]
["jdk.JavaMonitorWait",17164]
["jdk.JavaMonitorWait",17164]
["jdk.JavaMonitorWait",17164]
["jdk.JavaMonitorWait",17164]
["jdk.JavaMonitorWait",17164]
["jdk.JavaMonitorWait",17164]
["jdk.JavaMonitorWait",17164]
["jdk.JavaMonitorWait",{"$f":"COUNTIF($A$2:$A$65087,A27971)","v":17164}]
["jdk.JavaMonitorWait",17164]
["jdk.JavaMonitorWait",17164]
["jdk.JavaMonitorWait",17164]
["jdk.JavaMonitorWait",17164]
["jdk.JavaMonitorWait",17164]
["jdk.JavaMonitorWait",17164]
["jdk.JavaMonitorWait",17164]
["jdk.JavaMonitorWait",17164]
["jdk.JavaMonitorWait",17164]
["jdk.JavaMonitorWait",17164]
["jdk.JavaMonitorWait",17164]
["jdk.JavaMonitorWait",17164]
["jdk.JavaMonitorWait",17164]
["jdk.JavaMonitorWait",17164]
["jdk.JavaMonitorWait",17164]
["jdk.JavaMonitorWait",17164]
["jdk.JavaMonitorWait",17164]
["jdk.JavaMonitorWait",17164]
["jdk.JavaMonitorWait",17164]
["jdk.JavaMonitorWait",17164]
["jdk.JavaMonitorWait",17164]
["jdk.JavaMonitorWait",17164]
["jdk.JavaMonitorWait",17164]
["jdk.JavaMonitorWait",17164]
["jdk.JavaMonitorWait",17164]
["jdk.JavaMonitorWait",17164]
["jdk.JavaMonitorWait",17164]
["jdk.JavaMonitorWait",17164]
["jdk.JavaMonitorWait",17164]
["jdk.JavaMonitorWait",17164]
["jdk.JavaMonitorWait",17164]
["jdk.JavaMonitorWait",17164]
["jdk.JavaMonitorWait",17164]
["jdk.JavaMonitorWait",17164]
["jdk.JavaMonitorWait",17164]
["jdk.JavaMonitorWait",17164]
["jdk.JavaMonitorWait",17164]
["jdk.JavaMonitorWait",17164]
["jdk.JavaMonitorWait",17164]
["jdk.JavaMonitorWait",17164]
["jdk.JavaMonitorWait",17164]
["jdk.JavaMonitorWait",17164]
["jdk.JavaMonitorWait",17164]
["jdk.JavaMonitorWait",17164]
["jdk.JavaMonitorWait",17164]
["jdk.JavaMonitorWait",17164]
["jdk.JavaMonitorWait",17164]
["jdk.JavaMonitorWait",17164]
["jdk.JavaMonitorWait",17164]
["jdk.JavaMonitorWait",17164]
["jdk.JavaMonitorWait",17164]
["jdk.JavaMonitorWait",17164]
["jdk.JavaMonitorWait",17164]
["jdk.JavaMonitorWait",17164]
["jdk.JavaMonitorWait",17164]
["jdk.JavaMonitorWait",17164]
["jdk.JavaMonitorWait",17164]
["jdk.JavaMonitorWait",17164]
["jdk.JavaMonitorWait",17164]
["jdk.JavaMonitorWait",17164]
["jdk.JavaMonitorWait",17164]
["jdk.JavaMonitorWait",17164]
["jdk.JavaMonitorWait",17164]
["jdk.JavaMonitorWait",17164]
["jdk.JavaMonitorWait",17164]
["jdk.JavaMonitorWait",17164]
["jdk.JavaMonitorWait",17164]
["jdk.JavaMonitorWait",17164]
["jdk.JavaMonitorWait",17164]
["jdk.JavaMonitorWait",17164]
["jdk.JavaMonitorWait",17164]
["jdk.JavaMonitorWait",17164]
["jdk.JavaMonitorWait",17164]
["jdk.JavaMonitorWait",17164]
["jdk.JavaMonitorWait",17164]
["jdk.JavaMonitorWait",17164]
["jdk.JavaMonitorWait",17164]
["jdk.JavaMonitorWait",17164]
["jdk.JavaMonitorWait",17164]
["jdk.JavaMonitorWait",17164]
["jdk.JavaMonitorWait",17164]
["jdk.JavaMonitorWait",17164]
["jdk.JavaMonitorWait",17164]
["jdk.JavaMonitorWait",17164]
["jdk.JavaMonitorWait",17164]
["jdk.JavaMonitorWait",17164]
["jdk.JavaMonitorWait",17164]
["jdk.JavaMonitorWait",17164]
["jdk.JavaMonitorWait",17164]
["jdk.JavaMonitorWait",17164]
["jdk.JavaMonitorWait",17164]
["jdk.JavaMonitorWait",17164]
["jdk.JavaMonitorWait",17164]
["jdk.JavaMonitorWait",17164]
["jdk.JavaMonitorWait",17164]
["jdk.JavaMonitorWait",17164]
["jdk.JavaMonitorWait",17164]
["jdk.JavaMonitorWait",17164]
["jdk.JavaMonitorWait",17164]
["jdk.JavaMonitorWait",17164]
["jdk.JavaMonitorWait",17164]
["jdk.JavaMonitorWait",17164]
["jdk.JavaMonitorWait",17164]
["jdk.JavaMonitorWait",17164]
["jdk.JavaMonitorWait",17164]
["jdk.JavaMonitorWait",17164]
["jdk.JavaMonitorWait",17164]
["jdk.JavaMonitorWait",17164]
["jdk.JavaMonitorWait",17164]
["jdk.JavaMonitorWait",17164]
["jdk.JavaMonitorWait",17164]
["jdk.JavaMonitorWait",17164]
["jdk.JavaMonitorWait",17164]
["jdk.JavaMonitorWait",17164]
["jdk.JavaMonitorWait",17164]
["jdk.JavaMonitorWait",17164]
["jdk.JavaMonitorWait",17164]
["jdk.JavaMonitorWait",17164]
["jdk.JavaMonitorWait",17164]
["jdk.JavaMonitorWait",17164]
["jdk.JavaMonitorWait",17164]
["jdk.JavaMonitorWait",17164]
["jdk.JavaMonitorWait",17164]
["jdk.JavaMonitorWait",17164]
["jdk.JavaMonitorWait",17164]
["jdk.JavaMonitorWait",17164]
["jdk.JavaMonitorWait",17164]
["jdk.JavaMonitorWait",17164]
["jdk.JavaMonitorWait",{"$f":"COUNTIF($A$2:$A$65087,A32003)","v":17164}]
["jdk.JavaMonitorWait",17164]
["jdk.JavaMonitorWait",{"$f":"COUNTIF($A$2:$A$65087,A32067)","v":17164}]
["jdk.JavaMonitorWait",17164]
["jdk.JavaMonitorWait",17164]
["jdk.JavaMonitorWait",17164]
["jdk.JavaMonitorWait",17164]
["jdk.JavaMonitorWait",17164]
["jdk.JavaMonitorWait",17164]
["jdk.JavaMonitorWait",17164]
["jdk.JavaMonitorWait",17164]
["jdk.JavaMonitorWait",17164]
["jdk.JavaMonitorWait",17164]
["jdk.JavaMonitorWait",17164]
["jdk.JavaMonitorWait",17164]
["jdk.JavaMonitorWait",{"$f":"COUNTIF($A$2:$A$65087,A32451)","v":17164}]
["jdk.JavaMonitorWait",17164]
["jdk.JavaMonitorWait",17164]
["jdk.JavaMonitorWait",17164]
["jdk.JavaMonitorWait",17164]
["jdk.JavaMonitorWait",17164]
["jdk.JavaMonitorWait",17164]
["jdk.JavaMonitorWait",17164]
["jdk.JavaMonitorWait",17164]
["jdk.JavaMonitorWait",17164]
["jdk.JavaMonitorWait",17164]
["jdk.JavaMonitorWait",17164]
["jdk.JavaMonitorWait",17164]
["jdk.JavaMonitorWait",17164]
["jdk.JavaMonitorWait",17164]
["jdk.JavaMonitorWait",17164]
["jdk.JavaMonitorWait",17164]
["jdk.JavaMonitorWait",17164]
["jdk.JavaMonitorWait",17164]
["jdk.JavaMonitorWait",17164]
["jdk.JavaMonitorWait",17164]
["jdk.JavaMonitorWait",17164]
["jdk.JavaMonitorWait",17164]
["jdk.JavaMonitorWait",17164]
["jdk.JavaMonitorWait",17164]
["jdk.JavaMonitorWait",17164]
["jdk.JavaMonitorWait",17164]
["jdk.JavaMonitorWait",17164]
["jdk.JavaMonitorWait",17164]
["jdk.JavaMonitorWait",17164]
["jdk.JavaMonitorWait",17164]
["jdk.JavaMonitorWait",17164]
["jdk.JavaMonitorWait",17164]
["jdk.JavaMonitorWait",17164]
["jdk.JavaMonitorWait",17164]
["jdk.JavaMonitorWait",17164]
["jdk.JavaMonitorWait",17164]
["jdk.JavaMonitorWait",17164]
["jdk.JavaMonitorWait",17164]
["jdk.JavaMonitorWait",17164]
["jdk.JavaMonitorWait",17164]
["jdk.JavaMonitorWait",17164]
["jdk.JavaMonitorWait",17164]
["jdk.JavaMonitorWait",17164]
["jdk.JavaMonitorWait",17164]
["jdk.JavaMonitorWait",17164]
["jdk.JavaMonitorWait",17164]
["jdk.JavaMonitorWait",17164]
["jdk.JavaMonitorWait",17164]
["jdk.JavaMonitorWait",17164]
["jdk.JavaMonitorWait",17164]
["jdk.JavaMonitorWait",17164]
["jdk.JavaMonitorWait",17164]
["jdk.JavaMonitorWait",17164]
["jdk.JavaMonitorWait",17164]
["jdk.JavaMonitorWait",17164]
["jdk.JavaMonitorWait",17164]
["jdk.JavaMonitorWait",17164]
["jdk.JavaMonitorWait",17164]
["jdk.JavaMonitorWait",17164]
["jdk.JavaMonitorWait",17164]
["jdk.JavaMonitorWait",17164]
["jdk.JavaMonitorWait",17164]
["jdk.JavaMonitorWait",17164]
["jdk.JavaMonitorWait",17164]
["jdk.JavaMonitorWait",17164]
["jdk.JavaMonitorWait",17164]
["jdk.JavaMonitorWait",17164]
["jdk.JavaMonitorWait",17164]
["jdk.JavaMonitorWait",17164]
["jdk.JavaMonitorWait",17164]
["jdk.JavaMonitorWait",17164]
["jdk.JavaMonitorWait",17164]
["jdk.JavaMonitorWait",17164]
["jdk.JavaMonitorWait",17164]
["jdk.JavaMonitorWait",17164]
["jdk.JavaMonitorWait",17164]
["jdk.JavaMonitorWait",17164]
["jdk.JavaMonitorWait",17164]
["jdk.JavaMonitorWait",17164]
["jdk.JavaMonitorWait",17164]
["jdk.JavaMonitorWait",17164]
["jdk.JavaMonitorWait",17164]
["jdk.JavaMonitorWait",17164]
["jdk.JavaMonitorWait",17164]
["jdk.JavaMonitorWait",17164]
["jdk.JavaMonitorWait",17164]
["jdk.JavaMonitorWait",17164]
["jdk.JavaMonitorWait",17164]
["jdk.JavaMonitorWait",17164]
["jdk.JavaMonitorWait",17164]
["jdk.JavaMonitorWait",17164]
["jdk.JavaMonitorWait",17164]
["jdk.JavaMonitorWait",17164]
["jdk.JavaMonitorWait",17164]
["jdk.JavaMonitorWait",17164]
["jdk.JavaMonitorWait",17164]
["jdk.JavaMonitorWait",17164]
["jdk.JavaMonitorWait",17164]
["jdk.JavaMonitorWait",17164]
["jdk.JavaMonitorWait",17164]
["jdk.JavaMonitorWait",17164]
["jdk.JavaMonitorWait",17164]
["jdk.JavaMonitorWait",17164]
["jdk.JavaMonitorWait",17164]
["jdk.JavaMonitorWait",17164]
["jdk.JavaMonitorWait",17164]
["jdk.JavaMonitorWait",17164]
["jdk.JavaMonitorWait",17164]
["jdk.JavaMonitorWait",17164]
["jdk.JavaMonitorWait",17164]
["jdk.JavaMonitorWait",17164]
["jdk.JavaMonitorWait",17164]
["jdk.JavaMonitorWait",17164]
["jdk.JavaMonitorWait",17164]
["jdk.JavaMonitorWait",17164]
["jdk.JavaMonitorWait",17164]
["jdk.JavaMonitorWait",17164]
["jdk.JavaMonitorWait",17164]
["jdk.JavaMonitorWait",17164]
["jdk.JavaMonitorWait",17164]
["jdk.JavaMonitorWait",17164]
["jdk.JavaMonitorWait",17164]
["jdk.JavaMonitorWait",17164]
["jdk.JavaMonitorWait",17164]
["jdk.JavaMonitorWait",17164]
["jdk.JavaMonitorWait",17164]
["jdk.JavaMonitorWait",17164]
["jdk.JavaMonitorWait",17164]
["jdk.JavaMonitorWait",17164]
["jdk.JavaMonitorWait",17164]
["jdk.JavaMonitorWait",17164]
["jdk.JavaMonitorWait",17164]
["jdk.JavaMonitorWait",17164]
["jdk.JavaMonitorWait",17164]
["jdk.JavaMonitorWait",17164]
["jdk.JavaMonitorWait",17164]
["jdk.JavaMonitorWait",17164]
["jdk.JavaMonitorWait",17164]
["jdk.JavaMonitorWait",17164]
["jdk.JavaMonitorWait",17164]
["jdk.JavaMonitorWait",17164]
["jdk.JavaMonitorWait",17164]
["jdk.JavaMonitorWait",17164]
["jdk.JavaMonitorWait",17164]
["jdk.JavaMonitorWait",{"$f":"COUNTIF($A$2:$A$65087,A36995)","v":17164}]
["jdk.JavaMonitorWait",17164]
["jdk.JavaMonitorWait",17164]
["jdk.JavaMonitorWait",17164]
["jdk.JavaMonitorWait",17164]
["jdk.JavaMonitorWait",17164]
["jdk.JavaMonitorWait",17164]
["jdk.JavaMonitorWait",17164]
["jdk.JavaMonitorWait",17164]
["jdk.JavaMonitorWait",17164]
["jdk.JavaMonitorWait",17164]
["jdk.JavaMonitorWait",17164]
["jdk.JavaMonitorWait",17164]
["jdk.JavaMonitorWait",17164]
["jdk.JavaMonitorWait",17164]
["jdk.JavaMonitorWait",17164]
["jdk.JavaMonitorWait",17164]
["jdk.JavaMonitorWait",17164]
["jdk.JavaMonitorWait",17164]
["jdk.JavaMonitorWait",17164]
["jdk.JavaMonitorWait",17164]
["jdk.JavaMonitorWait",17164]
["jdk.JavaMonitorWait",17164]
["jdk.JavaMonitorWait",17164]
["jdk.JavaMonitorWait",17164]
["jdk.JavaMonitorWait",17164]
["jdk.JavaMonitorWait",17164]
["jdk.JavaMonitorWait",17164]
["jdk.JavaMonitorWait",17164]
["jdk.JavaMonitorWait",17164]
["jdk.JavaMonitorWait",17164]
["jdk.JavaMonitorWait",17164]
["jdk.JavaMonitorWait",17164]
["jdk.JavaMonitorWait",17164]
["jdk.JavaMonitorWait",17164]
["jdk.JavaMonitorWait",17164]
["jdk.JavaMonitorWait",17164]
["jdk.JavaMonitorWait",17164]
["jdk.JavaMonitorWait",17164]
["jdk.JavaMonitorWait",17164]
["jdk.JavaMonitorWait",17164]
["jdk.JavaMonitorWait",17164]
["jdk.JavaMonitorWait",17164]
["jdk.JavaMonitorWait",17164]
["jdk.JavaMonitorWait",17164]
["jdk.JavaMonitorWait",17164]
["jdk.JavaMonitorWait",17164]
["jdk.JavaMonitorWait",17164]
["jdk.JavaMonitorWait",17164]
["jdk.JavaMonitorWait",17164]
["jdk.JavaMonitorWait",17164]
["jdk.JavaMonitorWait",17164]
["jdk.JavaMonitorWait",17164]
["jdk.JavaMonitorWait",17164]
["jdk.JavaMonitorWait",17164]
["jdk.JavaMonitorWait",17164]
["jdk.JavaMonitorWait",17164]
["jdk.JavaMonitorWait",17164]
["jdk.JavaMonitorWait",17164]
["jdk.JavaMonitorWait",17164]
["jdk.JavaMonitorWait",17164]
["jdk.JavaMonitorWait",17164]
["jdk.JavaMonitorWait",17164]
["jdk.JavaMonitorWait",17164]
["jdk.JavaMonitorWait",17164]
["jdk.JavaMonitorWait",17164]
["jdk.JavaMonitorWait",17164]
["jdk.JavaMonitorWait",17164]
["jdk.JavaMonitorWait",17164]
["jdk.JavaMonitorWait",17164]
["jdk.JavaMonitorWait",17164]
["jdk.JavaThreadStatistics",299]
["jdk.JavaThreadStatistics",299]
["jdk.JavaThreadStatistics",299]
["jdk.JavaThreadStatistics",299]
["jdk.JavaThreadStatistics",299]
["jdk.JavaThreadStatistics",299]
["jdk.JavaThreadStatistics",299]
["jdk.JavaThreadStatistics",299]
["jdk.JavaThreadStatistics",299]
["jdk.JavaThreadStatistics",299]
["jdk.LongFlag",243]
["jdk.LongFlag",243]
["jdk.LongFlag",243]
["jdk.LongFlag",243]
["jdk.LongFlag",243]
["jdk.LongFlag",243]
["jdk.LongFlag",243]
["jdk.LongFlag",243]
["jdk.MetaspaceChunkFreeListSummary",32]
["jdk.ModuleExport",1361]
["jdk.ModuleExport",1361]
["jdk.ModuleExport",1361]
["jdk.ModuleExport",1361]
["jdk.ModuleExport",1361]
["jdk.ModuleExport",1361]
["jdk.ModuleExport",1361]
["jdk.ModuleExport",1361]
["jdk.ModuleExport",1361]
["jdk.ModuleExport",1361]
["jdk.ModuleExport",{"$f":"COUNTIF($A$2:$A$65087,A40131)","v":1361}]
["jdk.ModuleExport",1361]
["jdk.ModuleExport",1361]
["jdk.ModuleExport",1361]
["jdk.ModuleExport",1361]
["jdk.ModuleExport",1361]
["jdk.ModuleExport",1361]
["jdk.ModuleExport",1361]
["jdk.ModuleExport",1361]
["jdk.ModuleExport",1361]
["jdk.ModuleExport",1361]
["jdk.ModuleExport",1361]
["jdk.ModuleExport",1361]
["jdk.ModuleExport",1361]
["jdk.ModuleExport",1361]
["jdk.ModuleExport",1361]
["jdk.ModuleExport",1361]
["jdk.ModuleExport",1361]
["jdk.ModuleExport",1361]
["jdk.ModuleExport",1361]
["jdk.ModuleExport",1361]
["jdk.ModuleExport",1361]
["jdk.ModuleExport",1361]
["jdk.ModuleExport",1361]
["jdk.ModuleExport",1361]
["jdk.ModuleExport",1361]
["jdk.ModuleExport",1361]
["jdk.ModuleExport",1361]
["jdk.ModuleExport",1361]
["jdk.ModuleExport",1361]
["jdk.ModuleExport",1361]
["jdk.ModuleExport",1361]
["jdk.ModuleExport",1361]
["jdk.ModuleRequire",157]
["jdk.ModuleRequire",157]
["jdk.ModuleRequire",157]
["jdk.ModuleRequire",157]
["jdk.ModuleRequire",157]
["jdk.ModuleRequire",157]
["jdk.NativeLibrary",256]
["jdk.NativeLibrary",256]
["jdk.NativeLibrary",256]
["jdk.NativeLibrary",256]
["jdk.NativeLibrary",256]
["jdk.NativeLibrary",256]
["jdk.NativeLibrary",256]
["jdk.NativeLibrary",256]
["jdk.NativeMethodSample",17987]
["jdk.NativeMethodSample",17987]
["jdk.NativeMethodSample",17987]
["jdk.NativeMethodSample",17987]
["jdk.NativeMethodSample",17987]
["jdk.NativeMethodSample",17987]
["jdk.NativeMethodSample",17987]
["jdk.NativeMethodSample",17987]
["jdk.NativeMethodSample",17987]
["jdk.NativeMethodSample",17987]
["jdk.NativeMethodSample",17987]
["jdk.NativeMethodSample",17987]
["jdk.NativeMethodSample",17987]
["jdk.NativeMethodSample",17987]
["jdk.NativeMethodSample",17987]
["jdk.NativeMethodSample",17987]
["jdk.NativeMethodSample",17987]
["jdk.NativeMethodSample",17987]
["jdk.NativeMethodSample",17987]
["jdk.NativeMethodSample",17987]
["jdk.NativeMethodSample",17987]
["jdk.NativeMethodSample",17987]
["jdk.NativeMethodSample",17987]
["jdk.NativeMethodSample",17987]
["jdk.NativeMethodSample",17987]
["jdk.NativeMethodSample",17987]
["jdk.NativeMethodSample",17987]
["jdk.NativeMethodSample",17987]
["jdk.NativeMethodSample",17987]
["jdk.NativeMethodSample",17987]
["jdk.NativeMethodSample",17987]
["jdk.NativeMethodSample",17987]
["jdk.NativeMethodSample",17987]
["jdk.NativeMethodSample",17987]
["jdk.NativeMethodSample",17987]
["jdk.NativeMethodSample",17987]
["jdk.NativeMethodSample",17987]
["jdk.NativeMethodSample",17987]
["jdk.NativeMethodSample",17987]
["jdk.NativeMethodSample",17987]
["jdk.NativeMethodSample",17987]
["jdk.NativeMethodSample",17987]
["jdk.NativeMethodSample",17987]
["jdk.NativeMethodSample",17987]
["jdk.NativeMethodSample",17987]
["jdk.NativeMethodSample",17987]
["jdk.NativeMethodSample",17987]
["jdk.NativeMethodSample",17987]
["jdk.NativeMethodSample",17987]
["jdk.NativeMethodSample",17987]
["jdk.NativeMethodSample",17987]
["jdk.NativeMethodSample",17987]
["jdk.NativeMethodSample",17987]
["jdk.NativeMethodSample",17987]
["jdk.NativeMethodSample",17987]
["jdk.NativeMethodSample",17987]
["jdk.NativeMethodSample",17987]
["jdk.NativeMethodSample",17987]
["jdk.NativeMethodSample",17987]
["jdk.NativeMethodSample",17987]
["jdk.NativeMethodSample",17987]
["jdk.NativeMethodSample",17987]
["jdk.NativeMethodSample",17987]
["jdk.NativeMethodSample",17987]
["jdk.NativeMethodSample",17987]
["jdk.NativeMethodSample",17987]
["jdk.NativeMethodSample",17987]
["jdk.NativeMethodSample",17987]
["jdk.NativeMethodSample",17987]
["jdk.NativeMethodSample",17987]
["jdk.NativeMethodSample",17987]
["jdk.NativeMethodSample",17987]
["jdk.NativeMethodSample",17987]
["jdk.NativeMethodSample",17987]
["jdk.NativeMethodSample",17987]
["jdk.NativeMethodSample",17987]
["jdk.NativeMethodSample",17987]
["jdk.NativeMethodSample",17987]
["jdk.NativeMethodSample",17987]
["jdk.NativeMethodSample",17987]
["jdk.NativeMethodSample",17987]
["jdk.NativeMethodSample",17987]
["jdk.NativeMethodSample",{"$f":"COUNTIF($A$2:$A$65087,A44163)","v":17987}]
["jdk.NativeMethodSample",17987]
["jdk.NativeMethodSample",17987]
["jdk.NativeMethodSample",17987]
["jdk.NativeMethodSample",17987]
["jdk.NativeMethodSample",17987]
["jdk.NativeMethodSample",17987]
["jdk.NativeMethodSample",17987]
["jdk.NativeMethodSample",17987]
["jdk.NativeMethodSample",17987]
["jdk.NativeMethodSample",17987]
["jdk.NativeMethodSample",17987]
["jdk.NativeMethodSample",17987]
["jdk.NativeMethodSample",17987]
["jdk.NativeMethodSample",17987]
["jdk.NativeMethodSample",17987]
["jdk.NativeMethodSample",17987]
["jdk.NativeMethodSample",17987]
["jdk.NativeMethodSample",17987]
["jdk.NativeMethodSample",17987]
["jdk.NativeMethodSample",17987]
["jdk.NativeMethodSample",17987]
["jdk.NativeMethodSample",17987]
["jdk.NativeMethodSample",17987]
["jdk.NativeMethodSample",17987]
["jdk.NativeMethodSample",17987]
["jdk.NativeMethodSample",17987]
["jdk.NativeMethodSample",17987]
["jdk.NativeMethodSample",17987]
["jdk.NativeMethodSample",17987]
["jdk.NativeMethodSample",17987]
["jdk.NativeMethodSample",17987]
["jdk.NativeMethodSample",17987]
["jdk.NativeMethodSample",17987]
["jdk.NativeMethodSample",17987]
["jdk.NativeMethodSample",17987]
["jdk.NativeMethodSample",17987]
["jdk.NativeMethodSample",17987]
["jdk.NativeMethodSample",17987]
["jdk.NativeMethodSample",17987]
["jdk.NativeMethodSample",17987]
["jdk.NativeMethodSample",17987]
["jdk.NativeMethodSample",17987]
["jdk.NativeMethodSample",17987]
["jdk.NativeMethodSample",17987]
["jdk.NativeMethodSample",17987]
["jdk.NativeMethodSample",17987]
["jdk.NativeMethodSample",17987]
["jdk.NativeMethodSample",17987]
["jdk.NativeMethodSample",{"$f":"COUNTIF($A$2:$A$65087,A45699)","v":17987}]
["jdk.NativeMethodSample",17987]
["jdk.NativeMethodSample",17987]
["jdk.NativeMethodSample",17987]
["jdk.NativeMethodSample",17987]
["jdk.NativeMethodSample",17987]
["jdk.NativeMethodSample",17987]
["jdk.NativeMethodSample",17987]
["jdk.NativeMethodSample",17987]
["jdk.NativeMethodSample",17987]
["jdk.NativeMethodSample",17987]
["jdk.NativeMethodSample",17987]
["jdk.NativeMethodSample",17987]
["jdk.NativeMethodSample",17987]
["jdk.NativeMethodSample",17987]
["jdk.NativeMethodSample",17987]
["jdk.NativeMethodSample",17987]
["jdk.NativeMethodSample",17987]
["jdk.NativeMethodSample",17987]
["jdk.NativeMethodSample",17987]
["jdk.NativeMethodSample",17987]
["jdk.NativeMethodSample",17987]
["jdk.NativeMethodSample",17987]
["jdk.NativeMethodSample",17987]
["jdk.NativeMethodSample",17987]
["jdk.NativeMethodSample",17987]
["jdk.NativeMethodSample",17987]
["jdk.NativeMethodSample",17987]
["jdk.NativeMethodSample",17987]
["jdk.NativeMethodSample",17987]
["jdk.NativeMethodSample",17987]
["jdk.NativeMethodSample",17987]
["jdk.NativeMethodSample",17987]
["jdk.NativeMethodSample",17987]
["jdk.NativeMethodSample",17987]
["jdk.NativeMethodSample",17987]
["jdk.NativeMethodSample",17987]
["jdk.NativeMethodSample",17987]
["jdk.NativeMethodSample",17987]
["jdk.NativeMethodSample",17987]
["jdk.NativeMethodSample",17987]
["jdk.NativeMethodSample",17987]
["jdk.NativeMethodSample",17987]
["jdk.NativeMethodSample",17987]
["jdk.NativeMethodSample",17987]
["jdk.NativeMethodSample",17987]
["jdk.NativeMethodSample",17987]
["jdk.NativeMethodSample",17987]
["jdk.NativeMethodSample",17987]
["jdk.NativeMethodSample",17987]
["jdk.NativeMethodSample",17987]
["jdk.NativeMethodSample",{"$f":"COUNTIF($A$2:$A$65087,A47299)","v":17987}]
["jdk.NativeMethodSample",17987]
["jdk.NativeMethodSample",17987]
["jdk.NativeMethodSample",17987]
["jdk.NativeMethodSample",{"$f":"COUNTIF($A$2:$A$65087,A47427)","v":17987}]
["jdk.NativeMethodSample",17987]
["jdk.NativeMethodSample",17987]
["jdk.NativeMethodSample",17987]
["jdk.NativeMethodSample",17987]
["jdk.NativeMethodSample",17987]
["jdk.NativeMethodSample",17987]
["jdk.NativeMethodSample",17987]
["jdk.NativeMethodSample",17987]
["jdk.NativeMethodSample",17987]
["jdk.NativeMethodSample",17987]
["jdk.NativeMethodSample",17987]
["jdk.NativeMethodSample",17987]
["jdk.NativeMethodSample",17987]
["jdk.NativeMethodSample",17987]
["jdk.NativeMethodSample",17987]
["jdk.NativeMethodSample",17987]
["jdk.NativeMethodSample",17987]
["jdk.NativeMethodSample",17987]
["jdk.NativeMethodSample",17987]
["jdk.NativeMethodSample",17987]
["jdk.NativeMethodSample",17987]
["jdk.NativeMethodSample",17987]
["jdk.NativeMethodSample",17987]
["jdk.NativeMethodSample",17987]
["jdk.NativeMethodSample",{"$f":"COUNTIF($A$2:$A$65087,A48195)","v":17987}]
["jdk.NativeMethodSample",17987]
["jdk.NativeMethodSample",17987]
["jdk.NativeMethodSample",17987]
["jdk.NativeMethodSample",17987]
["jdk.NativeMethodSample",17987]
["jdk.NativeMethodSample",17987]
["jdk.NativeMethodSample",17987]
["jdk.NativeMethodSample",17987]
["jdk.NativeMethodSample",17987]
["jdk.NativeMethodSample",17987]
["jdk.NativeMethodSample",17987]
["jdk.NativeMethodSample",17987]
["jdk.NativeMethodSample",17987]
["jdk.NativeMethodSample",17987]
["jdk.NativeMethodSample",17987]
["jdk.NativeMethodSample",17987]
["jdk.NativeMethodSample",17987]
["jdk.NativeMethodSample",17987]
["jdk.NativeMethodSample",17987]
["jdk.NativeMethodSample",17987]
["jdk.NativeMethodSample",17987]
["jdk.NativeMethodSample",17987]
["jdk.NativeMethodSample",17987]
["jdk.NativeMethodSample",17987]
["jdk.NativeMethodSample",17987]
["jdk.NativeMethodSample",17987]
["jdk.NativeMethodSample",17987]
["jdk.NativeMethodSample",17987]
["jdk.NativeMethodSample",17987]
["jdk.NativeMethodSample",17987]
["jdk.NativeMethodSample",17987]
["jdk.NativeMethodSample",17987]
["jdk.NativeMethodSample",17987]
["jdk.NativeMethodSample",17987]
["jdk.NativeMethodSample",17987]
["jdk.NativeMethodSample",17987]
["jdk.NativeMethodSample",17987]
["jdk.NativeMethodSample",17987]
["jdk.NativeMethodSample",17987]
["jdk.NativeMethodSample",17987]
["jdk.NativeMethodSample",17987]
["jdk.NativeMethodSample",17987]
["jdk.NativeMethodSample",17987]
["jdk.NativeMethodSample",17987]
["jdk.NativeMethodSample",17987]
["jdk.NativeMethodSample",17987]
["jdk.NativeMethodSample",17987]
["jdk.NativeMethodSample",17987]
["jdk.NativeMethodSample",17987]
["jdk.NativeMethodSample",17987]
["jdk.NativeMethodSample",17987]
["jdk.NativeMethodSample",17987]
["jdk.NativeMethodSample",17987]
["jdk.NativeMethodSample",17987]
["jdk.NativeMethodSample",17987]
["jdk.NativeMethodSample",17987]
["jdk.NativeMethodSample",17987]
["jdk.NativeMethodSample",17987]
["jdk.NativeMethodSample",17987]
["jdk.NativeMethodSample",17987]
["jdk.NativeMethodSample",17987]
["jdk.NativeMethodSample",17987]
["jdk.NativeMethodSample",17987]
["jdk.NativeMethodSample",17987]
["jdk.NativeMethodSample",17987]
["jdk.NativeMethodSample",17987]
["jdk.NativeMethodSample",17987]
["jdk.NativeMethodSample",17987]
["jdk.NativeMethodSample",17987]
["jdk.NativeMethodSample",17987]
["jdk.NativeMethodSample",17987]
["jdk.NativeMethodSample",17987]
["jdk.NativeMethodSample",17987]
["jdk.NativeMethodSample",17987]
["jdk.NativeMethodSample",17987]
["jdk.NativeMethodSample",17987]
["jdk.NativeMethodSample",17987]
["jdk.NativeMethodSample",17987]
["jdk.NativeMethodSample",17987]
["jdk.NativeMethodSample",17987]
["jdk.NativeMethodSample",17987]
["jdk.NativeMethodSample",17987]
["jdk.NativeMethodSample",17987]
["jdk.NativeMethodSample",17987]
["jdk.NativeMethodSample",17987]
["jdk.NativeMethodSample",17987]
["jdk.NativeMethodSample",17987]
["jdk.NativeMethodSample",17987]
["jdk.NativeMethodSample",17987]
["jdk.NativeMethodSample",17987]
["jdk.NativeMethodSample",17987]
["jdk.NativeMethodSample",17987]
["jdk.NativeMethodSample",17987]
["jdk.NativeMethodSample",17987]
["jdk.NativeMethodSample",17987]
["jdk.NativeMethodSample",17987]
["jdk.NativeMethodSample",17987]
["jdk.NativeMethodSample",17987]
["jdk.NativeMethodSample",17987]
["jdk.NativeMethodSample",{"$f":"COUNTIF($A$2:$A$65087,A51331)","v":17987}]
["jdk.NativeMethodSample",17987]
["jdk.NativeMethodSample",17987]
["jdk.NativeMethodSample",17987]
["jdk.NativeMethodSample",17987]
["jdk.NativeMethodSample",17987]
["jdk.NativeMethodSample",17987]
["jdk.NativeMethodSample",17987]
["jdk.NativeMethodSample",17987]
["jdk.NativeMethodSample",17987]
["jdk.NativeMethodSample",17987]
["jdk.NativeMethodSample",17987]
["jdk.NativeMethodSample",17987]
["jdk.NativeMethodSample",17987]
["jdk.NativeMethodSample",17987]
["jdk.NativeMethodSample",17987]
["jdk.NativeMethodSample",{"$f":"COUNTIF($A$2:$A$65087,A51843)","v":17987}]
["jdk.NativeMethodSample",17987]
["jdk.NativeMethodSample",17987]
["jdk.NativeMethodSample",17987]
["jdk.NativeMethodSample",17987]
["jdk.NativeMethodSample",17987]
["jdk.NativeMethodSample",17987]
["jdk.NativeMethodSample",17987]
["jdk.NativeMethodSample",17987]
["jdk.NativeMethodSample",17987]
["jdk.NativeMethodSample",17987]
["jdk.NativeMethodSample",17987]
["jdk.NativeMethodSample",17987]
["jdk.NativeMethodSample",17987]
["jdk.NativeMethodSample",17987]
["jdk.NativeMethodSample",17987]
["jdk.NativeMethodSample",17987]
["jdk.NativeMethodSample",17987]
["jdk.NativeMethodSample",17987]
["jdk.NativeMethodSample",17987]
["jdk.NativeMethodSample",17987]
["jdk.NativeMethodSample",17987]
["jdk.NativeMethodSample",17987]
["jdk.NativeMethodSample",17987]
["jdk.NativeMethodSample",17987]
["jdk.NativeMethodSample",17987]
["jdk.NativeMethodSample",17987]
["jdk.NativeMethodSample",17987]
["jdk.NativeMethodSample",17987]
["jdk.NativeMethodSample",17987]
["jdk.NativeMethodSample",17987]
["jdk.NativeMethodSample",17987]
["jdk.NativeMethodSample",17987]
["jdk.NativeMethodSample",17987]
["jdk.NativeMethodSample",17987]
["jdk.NativeMethodSample",17987]
["jdk.NativeMethodSample",17987]
["jdk.NativeMethodSample",17987]
["jdk.NativeMethodSample",17987]
["jdk.NativeMethodSample",17987]
["jdk.NativeMethodSample",17987]
["jdk.NativeMethodSample",17987]
["jdk.NativeMethodSample",17987]
["jdk.NativeMethodSample",17987]
["jdk.NativeMethodSample",17987]
["jdk.NativeMethodSample",17987]
["jdk.NativeMethodSample",17987]
["jdk.NativeMethodSample",17987]
["jdk.NativeMethodSample",17987]
["jdk.NativeMethodSample",17987]
["jdk.NativeMethodSample",17987]
["jdk.NativeMethodSample",17987]
["jdk.NativeMethodSample",17987]
["jdk.NativeMethodSample",17987]
["jdk.NativeMethodSample",17987]
["jdk.NativeMethodSample",17987]
["jdk.NativeMethodSample",17987]
["jdk.NativeMethodSample",17987]
["jdk.NativeMethodSample",17987]
["jdk.NativeMethodSample",17987]
["jdk.NativeMethodSample",17987]
["jdk.NativeMethodSample",17987]
["jdk.NativeMethodSample",17987]
["jdk.NativeMethodSample",17987]
["jdk.NativeMethodSample",17987]
["jdk.NativeMethodSample",17987]
["jdk.NativeMethodSample",17987]
["jdk.NativeMethodSample",17987]
["jdk.NativeMethodSample",17987]
["jdk.NativeMethodSample",17987]
["jdk.NativeMethodSample",17987]
["jdk.NativeMethodSample",17987]
["jdk.NativeMethodSample",17987]
["jdk.NativeMethodSample",17987]
["jdk.NativeMethodSample",17987]
["jdk.NativeMethodSample",17987]
["jdk.NativeMethodSample",17987]
["jdk.NativeMethodSample",17987]
["jdk.NativeMethodSample",17987]
["jdk.NativeMethodSample",17987]
["jdk.NativeMethodSample",17987]
["jdk.NativeMethodSample",17987]
["jdk.NativeMethodSample",17987]
["jdk.NativeMethodSample",17987]
["jdk.NativeMethodSample",17987]
["jdk.NativeMethodSample",17987]
["jdk.NativeMethodSample",17987]
["jdk.NativeMethodSample",17987]
["jdk.NativeMethodSample",17987]
["jdk.NativeMethodSample",17987]
["jdk.NativeMethodSample",17987]
["jdk.NativeMethodSample",17987]
["jdk.NativeMethodSample",17987]
["jdk.NativeMethodSample",17987]
["jdk.NativeMethodSample",17987]
["jdk.NativeMethodSample",17987]
["jdk.NativeMethodSample",17987]
["jdk.NativeMethodSample",17987]
["jdk.NativeMethodSample",17987]
["jdk.NativeMethodSample",17987]
["jdk.NativeMethodSample",{"$f":"COUNTIF($A$2:$A$65087,A54979)","v":17987}]
["jdk.NativeMethodSample",17987]
["jdk.NativeMethodSample",17987]
["jdk.NativeMethodSample",17987]
["jdk.NativeMethodSample",17987]
["jdk.NativeMethodSample",17987]
["jdk.NativeMethodSample",17987]
["jdk.NativeMethodSample",17987]
["jdk.NativeMethodSample",17987]
["jdk.NativeMethodSample",17987]
["jdk.NativeMethodSample",17987]
["jdk.NativeMethodSample",17987]
["jdk.NativeMethodSample",17987]
["jdk.NativeMethodSample",17987]
["jdk.NativeMethodSample",17987]
["jdk.NativeMethodSample",17987]
["jdk.NativeMethodSample",17987]
["jdk.NativeMethodSample",17987]
["jdk.NativeMethodSample",17987]
["jdk.NativeMethodSample",17987]
["jdk.NativeMethodSample",17987]
["jdk.NativeMethodSample",17987]
["jdk.NativeMethodSample",17987]
["jdk.NativeMethodSample",17987]
["jdk.NativeMethodSample",17987]
["jdk.NativeMethodSample",17987]
["jdk.NativeMethodSample",17987]
["jdk.NativeMethodSample",17987]
["jdk.NativeMethodSample",17987]
["jdk.NativeMethodSample",{"$f":"COUNTIF($A$2:$A$65087,A55875)","v":17987}]
["jdk.NativeMethodSample",17987]
["jdk.NativeMethodSample",17987]
["jdk.NativeMethodSample",17987]
["jdk.NativeMethodSample",17987]
["jdk.NativeMethodSample",17987]
["jdk.NativeMethodSample",17987]
["jdk.NativeMethodSample",17987]
["jdk.NativeMethodSample",17987]
["jdk.NativeMethodSample",17987]
["jdk.NativeMethodSample",17987]
["jdk.NativeMethodSample",17987]
["jdk.NativeMethodSample",17987]
["jdk.NativeMethodSample",17987]
["jdk.NativeMethodSample",17987]
["jdk.NativeMethodSample",17987]
["jdk.NativeMethodSample",17987]
["jdk.NativeMethodSample",17987]
["jdk.NativeMethodSample",17987]
["jdk.NativeMethodSample",17987]
["jdk.NativeMethodSample",17987]
["jdk.NativeMethodSample",17987]
["jdk.NativeMethodSample",17987]
["jdk.NativeMethodSample",17987]
["jdk.NativeMethodSample",17987]
["jdk.NativeMethodSample",17987]
["jdk.NativeMethodSample",17987]
["jdk.NativeMethodSample",17987]
["jdk.NativeMethodSample",17987]
["jdk.NativeMethodSample",17987]
["jdk.NativeMethodSample",17987]
["jdk.NativeMethodSample",17987]
["jdk.NativeMethodSample",17987]
["jdk.NativeMethodSample",17987]
["jdk.NativeMethodSample",17987]
["jdk.NativeMethodSample",17987]
["jdk.NativeMethodSample",17987]
["jdk.NativeMethodSample",17987]
["jdk.NativeMethodSample",17987]
["jdk.NativeMethodSample",17987]
["jdk.NativeMethodSample",17987]
["jdk.NativeMethodSample",17987]
["jdk.NativeMethodSample",17987]
["jdk.NativeMethodSample",17987]
["jdk.NativeMethodSample",17987]
["jdk.NativeMethodSample",17987]
["jdk.NativeMethodSample",17987]
["jdk.NativeMethodSample",17987]
["jdk.NativeMethodSample",17987]
["jdk.NativeMethodSample",17987]
["jdk.NativeMethodSample",17987]
["jdk.NativeMethodSample",17987]
["jdk.NativeMethodSample",17987]
["jdk.NativeMethodSample",17987]
["jdk.NativeMethodSample",17987]
["jdk.NativeMethodSample",17987]
["jdk.NativeMethodSample",17987]
["jdk.NativeMethodSample",17987]
["jdk.NativeMethodSample",17987]
["jdk.NativeMethodSample",17987]
["jdk.NativeMethodSample",17987]
["jdk.NativeMethodSample",17987]
["jdk.NativeMethodSample",17987]
["jdk.NativeMethodSample",17987]
["jdk.NativeMethodSample",17987]
["jdk.NativeMethodSample",17987]
["jdk.NativeMethodSample",17987]
["jdk.NativeMethodSample",17987]
["jdk.NativeMethodSample",17987]
["jdk.NativeMethodSample",17987]
["jdk.NativeMethodSample",17987]
["jdk.NativeMethodSample",17987]
["jdk.NativeMethodSample",17987]
["jdk.NativeMethodSample",17987]
["jdk.NativeMethodSample",17987]
["jdk.NativeMethodSample",17987]
["jdk.NativeMethodSample",17987]
["jdk.NativeMethodSample",17987]
["jdk.NativeMethodSample",17987]
["jdk.NativeMethodSample",17987]
["jdk.NativeMethodSample",17987]
["jdk.NativeMethodSample",17987]
["jdk.NativeMethodSample",17987]
["jdk.NativeMethodSample",17987]
["jdk.NativeMethodSample",17987]
["jdk.NativeMethodSample",17987]
["jdk.NativeMethodSample",17987]
["jdk.NativeMethodSample",17987]
["jdk.NativeMethodSample",17987]
["jdk.NativeMethodSample",17987]
["jdk.NativeMethodSample",17987]
["jdk.NativeMethodSample",17987]
["jdk.NativeMethodSample",17987]
["jdk.NativeMethodSample",17987]
["jdk.NativeMethodSample",17987]
["jdk.NativeMethodSample",17987]
["jdk.NativeMethodSample",17987]
["jdk.NativeMethodSample",17987]
["jdk.NativeMethodSample",17987]
["jdk.NativeMethodSample",17987]
["jdk.NativeMethodSample",{"$f":"COUNTIF($A$2:$A$65087,A59011)","v":17987}]
["jdk.NativeMethodSample",17987]
["jdk.NativeMethodSample",17987]
["jdk.NativeMethodSample",17987]
["jdk.NativeMethodSample",17987]
["jdk.NativeMethodSample",17987]
["jdk.NativeMethodSample",17987]
["jdk.NativeMethodSample",17987]
["jdk.NativeMethodSample",17987]
["jdk.NativeMethodSample",17987]
["jdk.NativeMethodSample",17987]
["jdk.NativeMethodSample",17987]
["jdk.NativeMethodSample",17987]
["jdk.NativeMethodSample",17987]
["jdk.NativeMethodSample",17987]
["jdk.NativeMethodSample",17987]
["jdk.NativeMethodSample",17987]
["jdk.NativeMethodSample",17987]
["jdk.NetworkUtilization",127]
["jdk.NetworkUtilization",127]
["jdk.NetworkUtilization",127]
["jdk.NetworkUtilization",127]
["jdk.ObjectAllocationInNewTLAB",2645]
["jdk.ObjectAllocationInNewTLAB",2645]
["jdk.ObjectAllocationInNewTLAB",2645]
["jdk.ObjectAllocationInNewTLAB",2645]
["jdk.ObjectAllocationInNewTLAB",2645]
["jdk.ObjectAllocationInNewTLAB",2645]
["jdk.ObjectAllocationInNewTLAB",2645]
["jdk.ObjectAllocationInNewTLAB",2645]
["jdk.ObjectAllocationInNewTLAB",2645]
["jdk.ObjectAllocationInNewTLAB",2645]
["jdk.ObjectAllocationInNewTLAB",2645]
["jdk.ObjectAllocationInNewTLAB",2645]
["jdk.ObjectAllocationInNewTLAB",2645]
["jdk.ObjectAllocationInNewTLAB",2645]
["jdk.ObjectAllocationInNewTLAB",2645]
["jdk.ObjectAllocationInNewTLAB",2645]
["jdk.ObjectAllocationInNewTLAB",2645]
["jdk.ObjectAllocationInNewTLAB",2645]
["jdk.ObjectAllocationInNewTLAB",2645]
["jdk.ObjectAllocationInNewTLAB",2645]
["jdk.ObjectAllocationInNewTLAB",2645]
["jdk.ObjectAllocationInNewTLAB",2645]
["jdk.ObjectAllocationInNewTLAB",2645]
["jdk.ObjectAllocationInNewTLAB",2645]
["jdk.ObjectAllocationInNewTLAB",2645]
["jdk.ObjectAllocationInNewTLAB",2645]
["jdk.ObjectAllocationInNewTLAB",2645]
["jdk.ObjectAllocationInNewTLAB",2645]
["jdk.ObjectAllocationInNewTLAB",2645]
["jdk.ObjectAllocationInNewTLAB",2645]
["jdk.ObjectAllocationInNewTLAB",2645]
["jdk.ObjectAllocationInNewTLAB",2645]
["jdk.ObjectAllocationInNewTLAB",2645]
["jdk.ObjectAllocationInNewTLAB",2645]
["jdk.ObjectAllocationInNewTLAB",2645]
["jdk.ObjectAllocationInNewTLAB",2645]
["jdk.ObjectAllocationInNewTLAB",2645]
["jdk.ObjectAllocationInNewTLAB",2645]
["jdk.ObjectAllocationInNewTLAB",2645]
["jdk.ObjectAllocationInNewTLAB",2645]
["jdk.ObjectAllocationInNewTLAB",2645]
["jdk.ObjectAllocationInNewTLAB",2645]
["jdk.ObjectAllocationInNewTLAB",2645]
["jdk.ObjectAllocationInNewTLAB",2645]
["jdk.ObjectAllocationInNewTLAB",{"$f":"COUNTIF($A$2:$A$65087,A61059)","v":2645}]
["jdk.ObjectAllocationInNewTLAB",2645]
["jdk.ObjectAllocationInNewTLAB",2645]
["jdk.ObjectAllocationInNewTLAB",2645]
["jdk.ObjectAllocationInNewTLAB",2645]
["jdk.ObjectAllocationInNewTLAB",2645]
["jdk.ObjectAllocationInNewTLAB",2645]
["jdk.ObjectAllocationInNewTLAB",2645]
["jdk.ObjectAllocationInNewTLAB",2645]
["jdk.ObjectAllocationInNewTLAB",2645]
["jdk.ObjectAllocationInNewTLAB",2645]
["jdk.ObjectAllocationInNewTLAB",2645]
["jdk.ObjectAllocationInNewTLAB",2645]
["jdk.ObjectAllocationInNewTLAB",2645]
["jdk.ObjectAllocationInNewTLAB",2645]
["jdk.ObjectAllocationInNewTLAB",2645]
["jdk.ObjectAllocationInNewTLAB",2645]
["jdk.ObjectAllocationInNewTLAB",2645]
["jdk.ObjectAllocationInNewTLAB",2645]
["jdk.ObjectAllocationInNewTLAB",2645]
["jdk.ObjectAllocationInNewTLAB",2645]
["jdk.ObjectAllocationInNewTLAB",2645]
["jdk.ObjectAllocationInNewTLAB",2645]
["jdk.ObjectAllocationInNewTLAB",2645]
["jdk.ObjectAllocationInNewTLAB",2645]
["jdk.ObjectAllocationInNewTLAB",2645]
["jdk.ObjectAllocationInNewTLAB",2645]
["jdk.ObjectAllocationInNewTLAB",2645]
["jdk.ObjectAllocationInNewTLAB",2645]
["jdk.ObjectAllocationInNewTLAB",2645]
["jdk.ObjectAllocationInNewTLAB",2645]
["jdk.ObjectAllocationInNewTLAB",2645]
["jdk.ObjectAllocationInNewTLAB",2645]
["jdk.ObjectAllocationInNewTLAB",2645]
["jdk.ObjectAllocationInNewTLAB",2645]
["jdk.ObjectAllocationInNewTLAB",2645]
["jdk.ObjectAllocationInNewTLAB",2645]
["jdk.ObjectAllocationInNewTLAB",2645]
["jdk.ObjectAllocationInNewTLAB",2645]
["jdk.ObjectAllocationInNewTLAB",2645]
["jdk.ObjectAllocationInNewTLAB",2645]
["jdk.ObjectAllocationInNewTLAB",2645]
["jdk.ObjectAllocationOutsideTLAB",476]
["jdk.ObjectAllocationOutsideTLAB",476]
["jdk.ObjectAllocationOutsideTLAB",476]
["jdk.ObjectAllocationOutsideTLAB",476]
["jdk.ObjectAllocationOutsideTLAB",476]
["jdk.ObjectAllocationOutsideTLAB",476]
["jdk.ObjectAllocationOutsideTLAB",476]
["jdk.ObjectAllocationOutsideTLAB",476]
["jdk.ObjectAllocationOutsideTLAB",476]
["jdk.ObjectAllocationOutsideTLAB",476]
["jdk.ObjectAllocationOutsideTLAB",476]
["jdk.ObjectAllocationOutsideTLAB",476]
["jdk.ObjectAllocationOutsideTLAB",476]
["jdk.ObjectAllocationOutsideTLAB",{"$f":"COUNTIF($A$2:$A$65087,A62787)","v":476}]
["jdk.ObjectAllocationOutsideTLAB",476]
["jdk.OldObjectSample",81]
["jdk.OldObjectSample",81]
["jdk.OldObjectSample",81]
["jdk.PromoteObjectInNewPLAB",90]
["jdk.PromoteObjectInNewPLAB",90]
["jdk.PromoteObjectInNewPLAB",90]
["jdk.PromoteObjectOutsidePLAB",{"$f":"COUNTIF($A$2:$A$65087,A63043)","v":20}]
["jdk.SafepointBegin",195]
["jdk.SafepointBegin",195]
["jdk.SafepointBegin",195]
["jdk.SafepointBegin",195]
["jdk.SafepointBegin",195]
["jdk.SafepointBegin",195]
["jdk.SafepointBegin",195]
["jdk.SocketRead",316]
["jdk.SocketRead",316]
["jdk.SocketRead",316]
["jdk.SocketRead",316]
["jdk.SocketRead",316]
["jdk.SocketRead",316]
["jdk.SocketRead",316]
["jdk.SocketRead",316]
["jdk.SocketRead",316]
["jdk.StringFlag",34]
["jdk.SystemProcess",224]
["jdk.SystemProcess",224]
["jdk.SystemProcess",224]
["jdk.SystemProcess",224]
["jdk.SystemProcess",224]
["jdk.SystemProcess",224]
["jdk.SystemProcess",224]
["jdk.SystemProcess",224]
["jdk.TenuringDistribution",90]
["jdk.TenuringDistribution",90]
["jdk.TenuringDistribution",90]
["jdk.ThreadAllocationStatistics",77]
["jdk.ThreadAllocationStatistics",77]
["jdk.ThreadContextSwitchRate",30]
["jdk.ThreadCPULoad",123]
["jdk.ThreadCPULoad",123]
["jdk.ThreadCPULoad",123]
["jdk.ThreadCPULoad",123]
["jdk.ThreadPark",356]
["jdk.ThreadPark",356]
["jdk.ThreadPark",356]
["jdk.ThreadPark",356]
["jdk.ThreadPark",356]
["jdk.ThreadPark",356]
["jdk.ThreadPark",356]
["jdk.ThreadPark",356]
["jdk.ThreadPark",356]
["jdk.ThreadPark",356]
["jdk.ThreadPark",356]
["jdk.ThreadPark",356]
["jdk.ThreadSleep",363]
["jdk.ThreadSleep",363]
["jdk.ThreadSleep",363]
["jdk.ThreadSleep",363]
["jdk.ThreadSleep",363]
["jdk.ThreadSleep",363]
["jdk.ThreadSleep",363]
["jdk.ThreadSleep",363]
["jdk.ThreadSleep",363]
["jdk.ThreadSleep",363]
["jdk.ThreadSleep",363]
["jdk.ThreadSleep",363]
["jdk.ThreadSleep",363]
["jdk.ThreadSleep",363]
["jdk.ThreadSleep",363]
["jdk.ThreadSleep",363]
["jdk.ThreadSleep",363]
["jdk.ThreadSleep",363]
["jdk.ThreadSleep",363]
["jdk.ThreadSleep",363]
["jdk.ThreadSleep",363]
["jdk.ThreadSleep",363]
["jdk.ThreadSleep",363]
["jdk.ThreadSleep",363]
["jdk.ThreadSleep",363]
["jdk.ThreadSleep",363]
["jdk.ThreadSleep",363]
["jdk.ThreadSleep",363]
["jdk.ThreadSleep",363]
["jdk.ThreadSleep",363]
["jdk.ThreadSleep",363]
["jdk.ThreadSleep",363]
["jdk.ThreadSleep",363]
["jdk.ThreadSleep",363]
["jdk.ThreadSleep",363]
["jdk.ThreadSleep",363]
["jdk.ThreadSleep",363]
["jdk.ThreadSleep",363]
["jdk.ThreadSleep",363]
["jdk.ThreadSleep",363]
["jdk.ThreadSleep",363]
["jdk.ThreadSleep",363]
["jdk.ThreadSleep",363]
["jdk.ThreadSleep",363]
["jdk.ThreadSleep",363]
["jdk.ThreadSleep",363]
["jdk.ThreadSleep",363]
["jdk.ThreadSleep",363]
["jdk.ThreadSleep",363]
["jdk.ThreadSleep",363]
["jdk.ThreadSleep",363]
["jdk.ThreadSleep",363]
["jdk.ThreadSleep",363]
["jdk.ThreadSleep",363]
["jdk.ThreadSleep",363]
["jdk.ThreadSleep",363]
["jdk.ThreadSleep",363]
["jdk.ThreadSleep",{"$f":"COUNTIF($A$2:$A$65087,A64643)","v":363}]
["jdk.ThreadSleep",363]
["jdk.ThreadSleep",363]
["jdk.ThreadSleep",363]
["jdk.ThreadSleep",363]
["jdk.ThreadSleep",363]
["jdk.ThreadSleep",363]
["jdk.ThreadSleep",363]
["jdk.ThreadSleep",363]
["jdk.ThreadSleep",363]
["jdk.ThreadSleep",363]
["jdk.ThreadSleep",363]
["jdk.ThreadSleep",363]
["jdk.ThreadSleep",363]
["jdk.ThreadSleep",363]
["jdk.ThreadSleep",363]
["jdk.ThreadSleep",363]
["jdk.ThreadSleep",363]
["jdk.ThreadSleep",363]
["jdk.ThreadSleep",363]
["jdk.ThreadSleep",363]
["jdk.ThreadSleep",363]
["jdk.ThreadSleep",363]
["jdk.ThreadSleep",363]
["jdk.ThreadSleep",363]
["jdk.ThreadSleep",363]
["jdk.ThreadSleep",363]
["jdk.ThreadSleep",363]
["jdk.ThreadSleep",363]
["jdk.ThreadSleep",363]
["jdk.ThreadSleep",363]
["jdk.ThreadSleep",363]
["jdk.ThreadSleep",363]
["jdk.ThreadSleep",363]
["jdk.ThreadSleep",363]
["jdk.ThreadSleep",363]
["jdk.ThreadSleep",363]
["jdk.ThreadSleep",363]
["jdk.ThreadSleep",363]
["jdk.ThreadSleep",363]
["jdk.ThreadSleep",363]
["jdk.ThreadSleep",363]
["jdk.ThreadSleep",363]
["jdk.ThreadSleep",363]
["jdk.ThreadSleep",363]
["jdk.ThreadSleep",363]
["jdk.ThreadSleep",363]
["jdk.ThreadSleep",363]
["jdk.ThreadSleep",363]
["jdk.ThreadSleep",363]
["jdk.ThreadSleep",363]
["jdk.ThreadSleep",363]
["jdk.ThreadSleep",363]
["jdk.ThreadSleep",363]
["jdk.ThreadSleep",363]
["jdk.ThreadSleep",363]
["jdk.ThreadSleep",363]
["jdk.ThreadSleep",363]
["jdk.ThreadSleep",363]
["jdk.ThreadSleep",363]
["jdk.ThreadSleep",363]
["jdk.ThreadSleep",363]
["jdk.ThreadSleep",363]
["jdk.ThreadSleep",363]
["jdk.ThreadSleep",{"$f":"COUNTIF($A$2:$A$65087,A64707)","v":363}]
["jdk.ThreadSleep",363]
["jdk.ThreadSleep",363]
["jdk.ThreadSleep",363]
["jdk.ThreadSleep",363]
["jdk.ThreadSleep",363]
["jdk.ThreadSleep",363]
["jdk.ThreadSleep",363]
["jdk.ThreadSleep",363]
["jdk.ThreadSleep",363]
["jdk.ThreadSleep",363]
["jdk.ThreadSleep",363]
["jdk.ThreadSleep",363]
["jdk.ThreadSleep",363]
["jdk.ThreadSleep",363]
["jdk.ThreadSleep",363]
["jdk.ThreadSleep",363]
["jdk.ThreadSleep",363]
["jdk.ThreadSleep",363]
["jdk.ThreadSleep",363]
["jdk.ThreadSleep",363]
["jdk.ThreadSleep",363]
["jdk.ThreadSleep",363]
["jdk.ThreadSleep",363]
["jdk.ThreadSleep",363]
["jdk.ThreadSleep",363]
["jdk.ThreadSleep",363]
["jdk.ThreadSleep",363]
["jdk.ThreadSleep",363]
["jdk.ThreadSleep",363]
["jdk.ThreadSleep",363]
["jdk.ThreadSleep",363]
["jdk.ThreadSleep",363]
["jdk.ThreadSleep",363]
["jdk.ThreadSleep",363]
["jdk.ThreadSleep",363]
["jdk.ThreadSleep",363]
["jdk.ThreadSleep",363]
["jdk.ThreadSleep",363]
["jdk.ThreadSleep",363]
["jdk.ThreadSleep",363]
["jdk.ThreadSleep",363]
["jdk.ThreadSleep",363]
["jdk.ThreadSleep",363]
["jdk.ThreadSleep",363]
["jdk.ThreadSleep",363]
["jdk.ThreadSleep",363]
["jdk.ThreadSleep",363]
["jdk.ThreadSleep",363]
["jdk.ThreadSleep",363]
["jdk.ThreadSleep",363]
["jdk.ThreadSleep",363]
["jdk.ThreadSleep",363]
["jdk.ThreadSleep",363]
["jdk.ThreadSleep",363]
["jdk.ThreadSleep",363]
["jdk.ThreadSleep",363]
["jdk.ThreadSleep",363]
["jdk.ThreadSleep",363]
["jdk.ThreadSleep",363]
["jdk.ThreadSleep",363]
["jdk.ThreadSleep",363]
["jdk.ThreadSleep",363]
["jdk.ThreadSleep",363]
["jdk.ThreadSleep",{"$f":"COUNTIF($A$2:$A$65087,A64771)","v":363}]
["jdk.ThreadSleep",363]
["jdk.ThreadSleep",363]
["jdk.ThreadSleep",363]
["jdk.ThreadSleep",363]
["jdk.ThreadSleep",363]
["jdk.ThreadSleep",363]
["jdk.ThreadSleep",363]
["jdk.ThreadSleep",363]
["jdk.ThreadSleep",363]
["jdk.ThreadSleep",363]
["jdk.ThreadSleep",363]
["jdk.ThreadSleep",363]
["jdk.ThreadSleep",363]
["jdk.ThreadSleep",363]
["jdk.ThreadSleep",363]
["jdk.ThreadSleep",363]
["jdk.ThreadSleep",363]
["jdk.ThreadSleep",363]
["jdk.ThreadSleep",363]
["jdk.ThreadSleep",363]
["jdk.ThreadSleep",363]
["jdk.ThreadSleep",363]
["jdk.ThreadSleep",363]
["jdk.ThreadSleep",363]
["jdk.ThreadSleep",363]
["jdk.ThreadSleep",363]
["jdk.ThreadSleep",363]
["jdk.ThreadSleep",363]
["jdk.ThreadSleep",363]
["jdk.ThreadSleep",363]
["jdk.ThreadSleep",363]
["jdk.ThreadSleep",363]
["jdk.ThreadSleep",363]
["jdk.ThreadSleep",363]
["jdk.ThreadSleep",363]
["jdk.ThreadSleep",363]
["jdk.ThreadSleep",363]
["jdk.ThreadSleep",363]
["jdk.ThreadSleep",363]
["jdk.ThreadSleep",363]
["jdk.ThreadSleep",363]
["jdk.ThreadSleep",363]
["jdk.ThreadSleep",363]
["jdk.ThreadSleep",363]
["jdk.ThreadSleep",363]
["jdk.ThreadSleep",363]
["jdk.ThreadSleep",363]
["jdk.ThreadSleep",363]
["jdk.ThreadSleep",363]
["jdk.ThreadSleep",363]
["jdk.ThreadSleep",363]
["jdk.ThreadSleep",363]
["jdk.ThreadSleep",363]
["jdk.ThreadSleep",363]
["jdk.ThreadSleep",363]
["jdk.ThreadSleep",363]
["jdk.ThreadSleep",363]
["jdk.ThreadSleep",363]
["jdk.ThreadSleep",363]
["jdk.ThreadSleep",363]
["jdk.ThreadSleep",363]
["jdk.ThreadSleep",363]
["jdk.ThreadSleep",363]
["jdk.ThreadSleep",{"$f":"COUNTIF($A$2:$A$65087,A64835)","v":363}]
["jdk.ThreadSleep",363]
["jdk.ThreadSleep",363]
["jdk.ThreadSleep",363]
["jdk.ThreadSleep",363]
["jdk.ThreadSleep",363]
["jdk.ThreadSleep",363]
["jdk.ThreadSleep",363]
["jdk.ThreadSleep",363]
["jdk.ThreadSleep",363]
["jdk.ThreadSleep",363]
["jdk.ThreadSleep",363]
["jdk.ThreadSleep",363]
["jdk.ThreadSleep",363]
["jdk.ThreadSleep",363]
["jdk.ThreadSleep",363]
["jdk.ThreadSleep",363]
["jdk.ThreadSleep",363]
["jdk.ThreadSleep",363]
["jdk.ThreadSleep",363]
["jdk.ThreadSleep",363]
["jdk.ThreadSleep",363]
["jdk.ThreadSleep",363]
["jdk.ThreadSleep",363]
["jdk.ThreadSleep",363]
["jdk.ThreadSleep",363]
["jdk.ThreadSleep",363]
["jdk.ThreadSleep",363]
["jdk.ThreadSleep",363]
["jdk.ThreadSleep",363]
["jdk.ThreadSleep",363]
["jdk.ThreadSleep",363]
["jdk.ThreadSleep",363]
["jdk.ThreadSleep",363]
["jdk.ThreadSleep",363]
["jdk.ThreadSleep",363]
["jdk.ThreadSleep",363]
["jdk.ThreadSleep",363]
["jdk.ThreadSleep",363]
["jdk.ThreadSleep",363]
["jdk.ThreadSleep",363]
["jdk.ThreadSleep",363]
["jdk.ThreadSleep",363]
["jdk.ThreadSleep",363]
["jdk.ThreadStart",7]
["jdk.ThreadStart",7]
["jdk.ThreadStart",7]
["jdk.ThreadStart",7]
["jdk.ThreadStart",7]
["jdk.ThreadStart",7]
["jdk.ThreadStart",7]
["jdk.UnsignedIntFlag",7]
["jdk.UnsignedIntFlag",7]
["jdk.UnsignedIntFlag",7]
["jdk.UnsignedIntFlag",7]
["jdk.UnsignedIntFlag",7]
["jdk.UnsignedIntFlag",7]
["jdk.UnsignedIntFlag",7]
["jdk.UnsignedLongFlag",188]
["jdk.UnsignedLongFlag",188]
["jdk.UnsignedLongFlag",188]
["jdk.UnsignedLongFlag",188]
["jdk.UnsignedLongFlag",188]
["jdk.UnsignedLongFlag",188]
["jdk.UnsignedLongFlag",{"$f":"COUNTIF($A$2:$A$65087,A64899)","v":188}]
["jdk.UnsignedLongFlag",188]
["jdk.UnsignedLongFlag",188]
["jdk.UnsignedLongFlag",188]
["jdk.UnsignedLongFlag",188]
["jdk.UnsignedLongFlag",188]
["jdk.UnsignedLongFlag",188]
["jdk.UnsignedLongFlag",188]
["jdk.UnsignedLongFlag",188]
["jdk.UnsignedLongFlag",188]
["jdk.UnsignedLongFlag",188]
["jdk.UnsignedLongFlag",188]
["jdk.UnsignedLongFlag",188]
["jdk.UnsignedLongFlag",188]
["jdk.UnsignedLongFlag",188]
["jdk.UnsignedLongFlag",188]
["jdk.UnsignedLongFlag",188]
["jdk.UnsignedLongFlag",188]
["jdk.UnsignedLongFlag",188]
["jdk.UnsignedLongFlag",188]
["jdk.UnsignedLongFlag",188]
["jdk.UnsignedLongFlag",188]
["jdk.UnsignedLongFlag",188]
["jdk.UnsignedLongFlag",188]
["jdk.UnsignedLongFlag",188]
["jdk.UnsignedLongFlag",188]
["jdk.UnsignedLongFlag",188]
["jdk.UnsignedLongFlag",188]
["jdk.UnsignedLongFlag",188]
["jdk.UnsignedLongFlag",188]
["jdk.UnsignedLongFlag",188]
["jdk.UnsignedLongFlag",188]
["jdk.UnsignedLongFlag",188]
["jdk.UnsignedLongFlag",188]
["jdk.UnsignedLongFlag",188]
["jdk.UnsignedLongFlag",188]
["jdk.UnsignedLongFlag",188]
["jdk.UnsignedLongFlag",188]
["jdk.UnsignedLongFlag",188]
["jdk.UnsignedLongFlag",188]
["jdk.UnsignedLongFlag",188]
["jdk.UnsignedLongFlag",188]
["jdk.UnsignedLongFlag",188]
["jdk.UnsignedLongFlag",188]
["jdk.UnsignedLongFlag",188]
["jdk.UnsignedLongFlag",188]
["jdk.UnsignedLongFlag",188]
["jdk.UnsignedLongFlag",188]
["jdk.UnsignedLongFlag",188]
["jdk.UnsignedLongFlag",188]
["jdk.UnsignedLongFlag",188]
["jdk.UnsignedLongFlag",188]
["jdk.UnsignedLongFlag",188]
["jdk.UnsignedLongFlag",188]
["jdk.UnsignedLongFlag",188]
["jdk.UnsignedLongFlag",188]
["jdk.UnsignedLongFlag",188]
["jdk.UnsignedLongFlag",188]
["jdk.UnsignedLongFlag",188]
["jdk.UnsignedLongFlag",188]
["jdk.UnsignedLongFlag",188]
["jdk.UnsignedLongFlag",188]
["jdk.UnsignedLongFlag",188]
["jdk.UnsignedLongFlag",188]
["jdk.UnsignedLongFlag",{"$f":"COUNTIF($A$2:$A$65087,A64963)","v":188}]
["jdk.UnsignedLongFlag",188]
["jdk.UnsignedLongFlag",188]
["jdk.UnsignedLongFlag",188]
["jdk.UnsignedLongFlag",188]
["jdk.UnsignedLongFlag",188]
["jdk.UnsignedLongFlag",188]
["jdk.UnsignedLongFlag",188]
["jdk.UnsignedLongFlag",188]
["jdk.UnsignedLongFlag",188]
["jdk.UnsignedLongFlag",188]
["jdk.UnsignedLongFlag",188]
["jdk.UnsignedLongFlag",188]
["jdk.UnsignedLongFlag",188]
["jdk.UnsignedLongFlag",188]
["jdk.UnsignedLongFlag",188]
["jdk.UnsignedLongFlag",188]
["jdk.UnsignedLongFlag",188]
["jdk.UnsignedLongFlag",188]
["jdk.UnsignedLongFlag",188]
["jdk.UnsignedLongFlag",188]
["jdk.UnsignedLongFlag",188]
["jdk.UnsignedLongFlag",188]
["jdk.UnsignedLongFlag",188]
["jdk.UnsignedLongFlag",188]
["jdk.UnsignedLongFlag",188]
["jdk.UnsignedLongFlag",188]
["jdk.UnsignedLongFlag",188]
["jdk.UnsignedLongFlag",188]
["jdk.UnsignedLongFlag",188]
["jdk.UnsignedLongFlag",188]
["jdk.UnsignedLongFlag",188]
["jdk.UnsignedLongFlag",188]
["jdk.UnsignedLongFlag",188]
["jdk.UnsignedLongFlag",188]
["jdk.UnsignedLongFlag",188]
["jdk.UnsignedLongFlag",188]
["jdk.UnsignedLongFlag",188]
["jdk.UnsignedLongFlag",188]
["jdk.UnsignedLongFlag",188]
["jdk.UnsignedLongFlag",188]
["jdk.UnsignedLongFlag",188]
["jdk.UnsignedLongFlag",188]
["jdk.UnsignedLongFlag",188]
["jdk.UnsignedLongFlag",188]
["jdk.UnsignedLongFlag",188]
["jdk.UnsignedLongFlag",188]
["jdk.UnsignedLongFlag",188]
["jdk.UnsignedLongFlag",188]
["jdk.UnsignedLongFlag",188]
["jdk.UnsignedLongFlag",188]
["jdk.UnsignedLongFlag",188]
["jdk.UnsignedLongFlag",188]
["jdk.UnsignedLongFlag",188]
["jdk.UnsignedLongFlag",188]
["jdk.UnsignedLongFlag",188]
["jdk.UnsignedLongFlag",188]
["jdk.UnsignedLongFlag",188]
["jdk.UnsignedLongFlag",188]
["jdk.UnsignedLongFlag",188]
["jdk.UnsignedLongFlag",188]
["jdk.UnsignedLongFlag",188]
["jdk.UnsignedLongFlag",188]
["jdk.UnsignedLongFlag",188]
["jdk.UnsignedLongFlag",{"$f":"COUNTIF($A$2:$A$65087,A65027)","v":188}]
["jdk.UnsignedLongFlag",188]
["jdk.UnsignedLongFlag",188]
["jdk.UnsignedLongFlag",188]
["jdk.UnsignedLongFlag",188]
["jdk.UnsignedLongFlag",188]
["jdk.UnsignedLongFlag",188]
["jdk.UnsignedLongFlag",188]
["jdk.UnsignedLongFlag",188]
["jdk.UnsignedLongFlag",188]
["jdk.UnsignedLongFlag",188]
["jdk.UnsignedLongFlag",188]
["jdk.UnsignedLongFlag",188]
["jdk.UnsignedLongFlag",188]
["jdk.UnsignedLongFlag",188]
["jdk.UnsignedLongFlag",188]
["jdk.UnsignedLongFlag",188]
["jdk.UnsignedLongFlag",188]
["jdk.UnsignedLongFlag",188]
["jdk.UnsignedLongFlag",188]
["jdk.UnsignedLongFlag",188]
["jdk.UnsignedLongFlag",188]
["jdk.UnsignedLongFlag",188]
["jdk.UnsignedLongFlag",188]
["jdk.UnsignedLongFlag",188]
["jdk.UnsignedLongFlag",188]
["jdk.UnsignedLongFlag",188]
["jdk.UnsignedLongFlag",188]
["jdk.UnsignedLongFlag",188]
["jdk.UnsignedLongFlag",188]
["jdk.UnsignedLongFlag",188]
["jdk.UnsignedLongFlag",188]
["jdk.UnsignedLongFlag",188]
["jdk.UnsignedLongFlag",188]
["jdk.UnsignedLongFlag",188]
["jdk.UnsignedLongFlag",188]
["jdk.UnsignedLongFlag",188]
["jdk.UnsignedLongFlag",188]
["jdk.UnsignedLongFlag",188]
["jdk.UnsignedLongFlag",188]
["jdk.UnsignedLongFlag",188]
["jdk.UnsignedLongFlag",188]
["jdk.UnsignedLongFlag",188]
["jdk.UnsignedLongFlag",188]
["jdk.UnsignedLongFlag",188]
["jdk.UnsignedLongFlag",188]
["jdk.UnsignedLongFlag",188]
["jdk.UnsignedLongFlag",188]
["jdk.UnsignedLongFlag",188]
["jdk.UnsignedLongFlag",188]
["jdk.UnsignedLongFlag",188]
["jdk.UnsignedLongFlag",188]
["jdk.UnsignedLongFlag",188]
["jdk.UnsignedLongFlag",188]
["jdk.YoungGarbageCollection",6]
["jdk.YoungGarbageCollection",6]
["jdk.YoungGarbageCollection",6]
["jdk.YoungGarbageCollection",6]
["jdk.YoungGarbageCollection",6]
["jdk.YoungGarbageCollection",6]
["jdk.YoungGenerationConfiguration",1]

{"sheet":"Counts","index":1,"n_rows":94,"n_cols":3,"rows_kept":94,"cut":false,"hidden":false,"merged":[]}
["Event Types","Count"]
["jdk.ActiveRecording",2]
["jdk.ActiveSetting",771]
["jdk.AllocationRequiringGC",6]
["jdk.BiasedLockRevocation",5]
["jdk.BiasedLockSelfRevocation",3]
["jdk.BooleanFlag",761]
["jdk.ClassDefine",72]
["jdk.ClassLoad",114]
["jdk.ClassLoaderStatistics",555]
["jdk.ClassLoadingStatistics",299]
["jdk.CodeCacheConfiguration",1]
["jdk.CodeCacheStatistics",6]
["jdk.CodeSweeperConfiguration",1]
["jdk.CodeSweeperStatistics",2]
["jdk.Compilation",1030]
["jdk.CompilerConfiguration",1]
["jdk.CompilerInlining",10926]
["jdk.CompilerPhase",4675]
["jdk.CompilerStatistics",299]
["jdk.CPUInformation",1]
["jdk.CPULoad",299]
["jdk.CPUTimeStampCounter",1]
["jdk.DoubleFlag",11]
["jdk.EvacuationInformation",6]
["jdk.ExceptionStatistics",299]
["jdk.ExecuteVMOperation",31]
["jdk.ExecutionSample",78]
["jdk.G1AdaptiveIHOP",6]
["jdk.G1BasicIHOP",6]
["jdk.G1EvacuationOldStatistics",6]
["jdk.G1EvacuationYoungStatistics",6]
["jdk.G1GarbageCollection",6]
["jdk.G1HeapRegionInformation",248]
["jdk.G1HeapRegionTypeChange",1144]
["jdk.G1HeapSummary",16]
["jdk.G1MMU",6]
["jdk.GarbageCollection",8]
["jdk.GCConfiguration",2]
["jdk.GCHeapConfiguration",1]
["jdk.GCHeapSummary",16]
["jdk.GCPhasePause",8]
["jdk.GCPhasePauseLevel1",32]
["jdk.GCPhasePauseLevel2",21]
["jdk.GCPhasePauseLevel3",14]
["jdk.GCPhasePauseLevel4",6]
["jdk.GCReferenceStatistics",32]
["jdk.GCSurvivorConfiguration",1]
["jdk.GCTLABConfiguration",1]
["jdk.InitialEnvironmentVariable",41]
["jdk.InitialSystemProperty",17]
["jdk.IntFlag",6]
["jdk.JavaErrorThrow",1]
["jdk.JavaExceptionThrow",145,"JMC Shows only 143 events for excpetion"]
["jdk.JavaMonitorEnter",1,"Shown As Java Monitor Blocked Instead"]
["jdk.JavaMonitorWait",17164]
["jdk.JavaThreadStatistics",299]
["jdk.JVMInformation",1]
["jdk.LongFlag",243]
["jdk.MetaspaceChunkFreeListSummary",32]
["jdk.MetaspaceGCThreshold",2]
["jdk.MetaspaceSummary",16]
["jdk.ModuleExport",1361]
["jdk.ModuleRequire",157]
["jdk.NativeLibrary",256]
["jdk.NativeMethodSample",17987]
["jdk.NetworkUtilization",127]
["jdk.ObjectAllocationInNewTLAB",2645]
["jdk.ObjectAllocationOutsideTLAB",476]
["jdk.ObjectCount",43]
["jdk.OldGarbageCollection",2]
["jdk.OldObjectSample",81]
["jdk.OSInformation",1]
["jdk.PhysicalMemory",2]
["jdk.PromoteObjectInNewPLAB",90]
["jdk.PromoteObjectOutsidePLAB",20]
["jdk.SafepointBegin",195]
["jdk.SocketRead",316]
["jdk.StringFlag",34]
["jdk.SystemProcess",224]
["jdk.TenuringDistribution",90]
["jdk.ThreadAllocationStatistics",77]
["jdk.ThreadContextSwitchRate",30]
["jdk.ThreadCPULoad",123]
["jdk.ThreadDump",4]
["jdk.ThreadEnd",8]
["jdk.ThreadPark",356]
["jdk.ThreadSleep",363]
["jdk.ThreadStart",7]
["jdk.UnsignedIntFlag",7]
["jdk.UnsignedLongFlag",188]
["jdk.YoungGarbageCollection",6]
["jdk.YoungGenerationConfiguration",1]
[null,{"$f":"SUM(B2:B93)","v":65086}]

{"sheet":"Unique","index":2,"n_rows":92,"n_cols":1,"rows_kept":92,"cut":false,"hidden":false,"merged":[]}
["jdk.ActiveRecording"]
["jdk.ActiveSetting"]
["jdk.AllocationRequiringGC"]
["jdk.BiasedLockRevocation"]
["jdk.BiasedLockSelfRevocation"]
["jdk.BooleanFlag"]
["jdk.ClassDefine"]
["jdk.ClassLoad"]
["jdk.ClassLoaderStatistics"]
["jdk.ClassLoadingStatistics"]
["jdk.CodeCacheConfiguration"]
["jdk.CodeCacheStatistics"]
["jdk.CodeSweeperConfiguration"]
["jdk.CodeSweeperStatistics"]
["jdk.Compilation"]
["jdk.CompilerConfiguration"]
["jdk.CompilerInlining"]
["jdk.CompilerPhase"]
["jdk.CompilerStatistics"]
["jdk.CPUInformation"]
["jdk.CPULoad"]
["jdk.CPUTimeStampCounter"]
["jdk.DoubleFlag"]
["jdk.EvacuationInformation"]
["jdk.ExceptionStatistics"]
["jdk.ExecuteVMOperation"]
["jdk.ExecutionSample"]
["jdk.G1AdaptiveIHOP"]
["jdk.G1BasicIHOP"]
["jdk.G1EvacuationOldStatistics"]
["jdk.G1EvacuationYoungStatistics"]
["jdk.G1GarbageCollection"]
["jdk.G1HeapRegionInformation"]
["jdk.G1HeapRegionTypeChange"]
["jdk.G1HeapSummary"]
["jdk.G1MMU"]
["jdk.GarbageCollection"]
["jdk.GCConfiguration"]
["jdk.GCHeapConfiguration"]
["jdk.GCHeapSummary"]
["jdk.GCPhasePause"]
["jdk.GCPhasePauseLevel1"]
["jdk.GCPhasePauseLevel2"]
["jdk.GCPhasePauseLevel3"]
["jdk.GCPhasePauseLevel4"]
["jdk.GCReferenceStatistics"]
["jdk.GCSurvivorConfiguration"]
["jdk.GCTLABConfiguration"]
["jdk.InitialEnvironmentVariable"]
["jdk.InitialSystemProperty"]
["jdk.IntFlag"]
["jdk.JavaErrorThrow"]
["jdk.JavaExceptionThrow"]
["jdk.JavaMonitorEnter"]
["jdk.JavaMonitorWait"]
["jdk.JavaThreadStatistics"]
["jdk.JVMInformation"]
["jdk.LongFlag"]
["jdk.MetaspaceChunkFreeListSummary"]
["jdk.MetaspaceGCThreshold"]
["jdk.MetaspaceSummary"]
["jdk.ModuleExport"]
["jdk.ModuleRequire"]
["jdk.NativeLibrary"]
["jdk.NativeMethodSample"]
["jdk.NetworkUtilization"]
["jdk.ObjectAllocationInNewTLAB"]
["jdk.ObjectAllocationOutsideTLAB"]
["jdk.ObjectCount"]
["jdk.OldGarbageCollection"]
["jdk.OldObjectSample"]
["jdk.OSInformation"]
["jdk.PhysicalMemory"]
["jdk.PromoteObjectInNewPLAB"]
["jdk.PromoteObjectOutsidePLAB"]
["jdk.SafepointBegin"]
["jdk.SocketRead"]
["jdk.StringFlag"]
["jdk.SystemProcess"]
["jdk.TenuringDistribution"]
["jdk.ThreadAllocationStatistics"]
["jdk.ThreadContextSwitchRate"]
["jdk.ThreadCPULoad"]
["jdk.ThreadDump"]
["jdk.ThreadEnd"]
["jdk.ThreadPark"]
["jdk.ThreadSleep"]
["jdk.ThreadStart"]
["jdk.UnsignedIntFlag"]
["jdk.UnsignedLongFlag"]
["jdk.YoungGarbageCollection"]
["jdk.YoungGenerationConfiguration"]